Workbook

Sheet Dati input
C4: ISTRUZIONI PER LA COMPILAZIONE 1. Scarica e salva il file Excel sul tuo computer, poi aprilo per procedere con la compilazione. 2. Inserisci i dati richiesti nelle celle verdi, tenendo presente che: - come previsto dalla Legge, l'importo complessivo dei finanziamenti richiesti a questa o ad altre Banche, ai sensi dell’art. 13, comma 1, lettera m) del Decreto Liquidità, non può superare alternativamente: a) il doppio della spesa salariale annua (compresi gli oneri sociali e il costo del personale che lavora nel sito dell'impresa ma che figura formalmente nel libro paga dei subcontraenti) per il 2019 o per l'ultimo anno disponibile. Nel caso di imprese costituite a partire dal 1° gennaio 2019, l'importo massimo del prestito non può superare i costi salariali annui previsti per i primi due anni di attività. b) il 25 per cento del fatturato totale nel 2019. c) l'importo complessivo di 30.000 euro; - il finanziamento ha una durata massima di 120 mesi (10 anni) che comprendono un periodo iniziale di preammortamento della durata di 24 o 36 mesi, in cui le rate sono comprensive di soli interessi - se si sceglie un preammortamento di 36 mesi, la durata minima complessiva del finanziamento è di 48 mesi. 3. Seleziona il pulsante CALCOLA per verificare il TAEG 4. Seleziona il pulsante STAMPA per generare il PDF precompilato che conterrà la Proposta contrattuale. Dovrai firmarlo e poi seguire le istruzioni riportate sul sito di Intesa Sanpaolo per inviare la richiesta di finanziamento.
C6: DATI DEL RICHIEDENTE
C8: Ragione / Denominazione sociale | AM8: 24 | AN8: 36
C9: Sede | D9: (Città) | N9: (Indirizzo) | AL9: 24 | AM9: na | AN9: na
C10: Partita iva / Codice Fiscale | AL10: 36 | AM10: 0 | AN10: na
AL11: 48 | AM11: 0 | AN11: 0.0019
C12: oppure | AL12: 60 | AM12: 0.002 | AN12: 0.004
AL13: 72 | AM13: 0.004 | AN13: 0.0045
C14: Cognome e Nome | AL14: 84 | AM14: 0.0045 | AN14: 0.0055
C15: Residente in | D15: (Città) | N15: (Indirizzo) | AL15: 96 | AM15: 0.0055 | AN15: 0.006
C16: Ditta (eventuale) | AL16: 108 | AM16: 0.006 | AN16: 0.0065
C17: Partita iva / Codice Fiscale | AL17: 120 | AM17: 0.0065 | AN17: 0.007
C20: CARATTERISTICHE DEL FINANZIAMENTO AGGIUNTIVO
C22: Importo del finanziamento in corso | F22: Durata del nuovo finanziamento in mesi (incluso il preammortamento) | AJ22: =30000-D22 -> 30000
C23: Importo aggiuntivo del nuovo finanziamento | F23: Durata del periodo di preammortamento del nuovo finanziamento | AJ23: 24 | AQ23: =NumToLet(D23) -> ZERO/
AJ24: =IF(AF22>36,36,"") -> 
C25: IBAN di accredito e di addebito rate | AJ25: 0 | AK25: incasso rata
C28: CONDIZIONI ECONOMICHE DEL FINANZIAMENTO AGGIUNTIVO
C30: TAN | D30: =IF(AF22="","na",IF(AF23=24,VLOOKUP(AF22,AL:AM,2,FALSE),IF(AF23=36,VLOOKUP(AF22,AL:AN,3,FALSE),"na"))) -> na | F30: Data della richiesta | AG30: =TODAY() -> 2020-08-31
C31: Spese di istruttoria | D31: 0
C32: Spese comunicazioni di legge | D32: 0
C33: Spese istruttoria | AG33: Importo rata
C35: RATA E COSTO DEL CREDITO
C36: Rata periodo di preammortamento | D36: =IF(D30="na","",D30/12*D23) ->  | T36: TAEG (Tasso Annuo Effettivo Globale) | AG36: =PAM!N3 -> 0
C37: Rata periodo di ammortamento | D37: =IF(D30="na","",-PMT(D30/12,(AF22-AF23),D23,0)) -> 
AL42: premesso che: - la Parte Finanziata ha ottenuto dalla Banca un finanziamento di euro
AL43: finalizzato a fare fronte all’emergenza COVID-19, come previsto dall’art. 13, comma 1, lettera m), decreto legge 8 aprile 2020 n. 23, prima della conversione in legge di detto decreto; - tenuto conto di quanto previsto dalla nuova lettera m-bis) dell’art. 13, comma 1, del citato decreto legge, convertito, con modificazioni, dalla legge 5 giugno 2020, n. 40, la Parte Finanziata richiede un ulteriore finanziamento al fine di adeguare l’importo complessivamente finanziato alle nuove condizioni introdotte dalla legge di conversione; ciò premesso, le parti convengono e stipulano quanto segue.

Sheet PAM (hidden)
A1: PIANO DI AMMORTAMENTO | J1: CALCOLO TAEG
A2: N. rata | B2: Gg per attualizzazione | C2: Data | D2: Importo rata | E2: Interessi | F2: Capitale | G2: Capitale residuo | H2: Spese trasparenza | I2: Spese di incasso rata | J2: Gg per attualizzazione | K2: Esponente attualizzazione | L2: Flussi di cassa | M2: Flussi di cassa attualizzati | N2: TAEG
M3: =SUM(M4:M540) -> 
C4: ='Dati input'!AG30+1 -> 2020-09-01 | G4: ='Dati input'!D23 -> 0 | L4: =-'Dati input'!D23+'Dati input'!D31 -> 0 | M4: =L4 -> 0
A5: 1 | B5: =IF(A5="","",30) -> 30 | C5: =EDATE(C4,1) -> 2020-10-01 | D5: =IF(A5="","",IF(A5<='Dati input'!$AF$23,'Dati input'!$D$36,'Dati input'!$D$37)+I5+H5) ->  | E5: =IF(A5="","",IF(A5<='Dati input'!$AF$23,'Dati input'!$D$36,'Dati input'!$D$30/12*PAM!G4)) ->  | F5: =IF(A5="","",D5-E5-I5-H5) ->  | G5: =IF(A5="","",G4-F5) ->  | H5: ='Dati input'!$D$32 -> 0 | I5: =IF(A5="","",'Dati input'!$AJ$25) -> 0 | J5: =C5-C4 -> 30 | K5: =J5/365 -> 0.08219178082 | L5: =IF(A5="",0,D5) ->  | M5: =IF(A5="",0,L5/(1+$N$3)^K5) -> 
A6: =IF(OR(A5='Dati input'!$AF$22,A5=""),"",A5+1) -> 2 | B6: =IF(A6="","",30) -> 30 | C6: =EDATE(C5,1) -> 2020-11-01 | D6: =IF(A6="","",IF(A6<='Dati input'!$AF$23,'Dati input'!$D$36,'Dati input'!$D$37)+I6+H6) ->  | E6: =IF(A6="","",IF(A6<='Dati input'!$AF$23,'Dati input'!$D$36,'Dati input'!$D$30/12*PAM!G5)) ->  | F6: =IF(A6="","",D6-E6-I6-H6) ->  | G6: =IF(A6="","",G5-F6) ->  | H6: ='Dati input'!$D$32 -> 0 | I6: =IF(A6="","",'Dati input'!$AJ$25) -> 0 | J6: =J5+C6-C5 -> 61 | K6: =J6/365 -> 0.1671232877 | L6: =IF(A6="",0,D6) ->  | M6: =IF(A6="",0,L6/(1+$N$3)^K6) -> 
A7: =IF(OR(A6='Dati input'!$AF$22,A6=""),"",A6+1) -> 3 | B7: 30 | C7: 2020-12-01 | D7: =IF(A7="","",IF(A7<='Dati input'!$AF$23,'Dati input'!$D$36,'Dati input'!$D$37)+I7+H7) ->  | E7: =IF(A7="","",IF(A7<='Dati input'!$AF$23,'Dati input'!$D$36,'Dati input'!$D$30/12*PAM!G6)) ->  | H7: ='Dati input'!$D$32 -> 0 | I7: =IF(A7="","",'Dati input'!$AJ$25) -> 0 | J7: =J6+C7-C6 -> 91 | K7: 0.2493150685
A8: =IF(OR(A7='Dati input'!$AF$22,A7=""),"",A7+1) -> 4 | B8: 30 | C8: 2021-01-01 | D8: =IF(A8="","",IF(A8<='Dati input'!$AF$23,'Dati input'!$D$36,'Dati input'!$D$37)+I8+H8) ->  | E8: =IF(A8="","",IF(A8<='Dati input'!$AF$23,'Dati input'!$D$36,'Dati input'!$D$30/12*PAM!G7)) ->  | H8: ='Dati input'!$D$32 -> 0 | I8: =IF(A8="","",'Dati input'!$AJ$25) -> 0 | J8: 122 | K8: 0.3342465753
A9: =IF(OR(A8='Dati input'!$AF$22,A8=""),"",A8+1) -> 5 | B9: 30 | C9: 2021-02-01 | D9: =IF(A9="","",IF(A9<='Dati input'!$AF$23,'Dati input'!$D$36,'Dati input'!$D$37)+I9+H9) ->  | E9: =IF(A9="","",IF(A9<='Dati input'!$AF$23,'Dati input'!$D$36,'Dati input'!$D$30/12*PAM!G8)) ->  | H9: ='Dati input'!$D$32 -> 0 | I9: =IF(A9="","",'Dati input'!$AJ$25) -> 0 | J9: 153 | K9: 0.4191780822
A10: =IF(OR(A9='Dati input'!$AF$22,A9=""),"",A9+1) -> 6 | B10: 30 | C10: 2021-03-01 | D10: =IF(A10="","",IF(A10<='Dati input'!$AF$23,'Dati input'!$D$36,'Dati input'!$D$37)+I10+H10) ->  | E10: =IF(A10="","",IF(A10<='Dati input'!$AF$23,'Dati input'!$D$36,'Dati input'!$D$30/12*PAM!G9)) ->  | H10: ='Dati input'!$D$32 -> 0 | I10: =IF(A10="","",'Dati input'!$AJ$25) -> 0 | J10: 181 | K10: 0.495890411
A11: =IF(OR(A10='Dati input'!$AF$22,A10=""),"",A10+1) -> 7 | B11: 30 | C11: 2021-04-01 | D11: =IF(A11="","",IF(A11<='Dati input'!$AF$23,'Dati input'!$D$36,'Dati input'!$D$37)+I11+H11) ->  | E11: =IF(A11="","",IF(A11<='Dati input'!$AF$23,'Dati input'!$D$36,'Dati input'!$D$30/12*PAM!G10)) ->  | H11: ='Dati input'!$D$32 -> 0 | I11: =IF(A11="","",'Dati input'!$AJ$25) -> 0 | J11: 212 | K11: 0.5808219178
A12: =IF(OR(A11='Dati input'!$AF$22,A11=""),"",A11+1) -> 8 | B12: 30 | C12: 2021-05-01 | D12: =IF(A12="","",IF(A12<='Dati input'!$AF$23,'Dati input'!$D$36,'Dati input'!$D$37)+I12+H12) ->  | E12: =IF(A12="","",IF(A12<='Dati input'!$AF$23,'Dati input'!$D$36,'Dati input'!$D$30/12*PAM!G11)) ->  | H12: ='Dati input'!$D$32 -> 0 | I12: =IF(A12="","",'Dati input'!$AJ$25) -> 0 | J12: 242 | K12: 0.6630136986
A13: =IF(OR(A12='Dati input'!$AF$22,A12=""),"",A12+1) -> 9 | B13: 30 | C13: 2021-06-01 | D13: =IF(A13="","",IF(A13<='Dati input'!$AF$23,'Dati input'!$D$36,'Dati input'!$D$37)+I13+H13) ->  | E13: =IF(A13="","",IF(A13<='Dati input'!$AF$23,'Dati input'!$D$36,'Dati input'!$D$30/12*PAM!G12)) ->  | H13: ='Dati input'!$D$32 -> 0 | I13: =IF(A13="","",'Dati input'!$AJ$25) -> 0 | J13: 273 | K13: 0.7479452055
A14: =IF(OR(A13='Dati input'!$AF$22,A13=""),"",A13+1) -> 10 | B14: 30 | C14: 2021-07-01 | D14: =IF(A14="","",IF(A14<='Dati input'!$AF$23,'Dati input'!$D$36,'Dati input'!$D$37)+I14+H14) ->  | E14: =IF(A14="","",IF(A14<='Dati input'!$AF$23,'Dati input'!$D$36,'Dati input'!$D$30/12*PAM!G13)) ->  | H14: ='Dati input'!$D$32 -> 0 | I14: =IF(A14="","",'Dati input'!$AJ$25) -> 0 | J14: 303 | K14: 0.8301369863
A15: =IF(OR(A14='Dati input'!$AF$22,A14=""),"",A14+1) -> 11 | B15: 30 | C15: 2021-08-01 | D15: =IF(A15="","",IF(A15<='Dati input'!$AF$23,'Dati input'!$D$36,'Dati input'!$D$37)+I15+H15) ->  | E15: =IF(A15="","",IF(A15<='Dati input'!$AF$23,'Dati input'!$D$36,'Dati input'!$D$30/12*PAM!G14)) ->  | H15: ='Dati input'!$D$32 -> 0 | I15: =IF(A15="","",'Dati input'!$AJ$25) -> 0 | J15: 334 | K15: 0.9150684932
A16: =IF(OR(A15='Dati input'!$AF$22,A15=""),"",A15+1) -> 12 | B16: 30 | C16: 2021-09-01 | D16: =IF(A16="","",IF(A16<='Dati input'!$AF$23,'Dati input'!$D$36,'Dati input'!$D$37)+I16+H16) ->  | E16: =IF(A16="","",IF(A16<='Dati input'!$AF$23,'Dati input'!$D$36,'Dati input'!$D$30/12*PAM!G15)) ->  | H16: ='Dati input'!$D$32 -> 0 | I16: =IF(A16="","",'Dati input'!$AJ$25) -> 0 | J16: 365 | K16: 1
A17: =IF(OR(A16='Dati input'!$AF$22,A16=""),"",A16+1) -> 13 | B17: 30 | C17: 2021-10-01 | D17: =IF(A17="","",IF(A17<='Dati input'!$AF$23,'Dati input'!$D$36,'Dati input'!$D$37)+I17+H17) ->  | E17: =IF(A17="","",IF(A17<='Dati input'!$AF$23,'Dati input'!$D$36,'Dati input'!$D$30/12*PAM!G16)) ->  | H17: ='Dati input'!$D$32 -> 0 | I17: =IF(A17="","",'Dati input'!$AJ$25) -> 0 | J17: 395 | K17: 1.082191781
A18: =IF(OR(A17='Dati input'!$AF$22,A17=""),"",A17+1) -> 14 | B18: 30 | C18: 2021-11-01 | D18: =IF(A18="","",IF(A18<='Dati input'!$AF$23,'Dati input'!$D$36,'Dati input'!$D$37)+I18+H18) ->  | E18: =IF(A18="","",IF(A18<='Dati input'!$AF$23,'Dati input'!$D$36,'Dati input'!$D$30/12*PAM!G17)) ->  | H18: ='Dati input'!$D$32 -> 0 | I18: =IF(A18="","",'Dati input'!$AJ$25) -> 0 | J18: 426 | K18: 1.167123288
A19: =IF(OR(A18='Dati input'!$AF$22,A18=""),"",A18+1) -> 15 | B19: 30 | C19: 2021-12-01 | D19: =IF(A19="","",IF(A19<='Dati input'!$AF$23,'Dati input'!$D$36,'Dati input'!$D$37)+I19+H19) ->  | E19: =IF(A19="","",IF(A19<='Dati input'!$AF$23,'Dati input'!$D$36,'Dati input'!$D$30/12*PAM!G18)) ->  | H19: ='Dati input'!$D$32 -> 0 | I19: =IF(A19="","",'Dati input'!$AJ$25) -> 0 | J19: 456 | K19: 1.249315068
A20: =IF(OR(A19='Dati input'!$AF$22,A19=""),"",A19+1) -> 16 | B20: 30 | C20: 2022-01-01 | D20: =IF(A20="","",IF(A20<='Dati input'!$AF$23,'Dati input'!$D$36,'Dati input'!$D$37)+I20+H20) ->  | E20: =IF(A20="","",IF(A20<='Dati input'!$AF$23,'Dati input'!$D$36,'Dati input'!$D$30/12*PAM!G19)) ->  | H20: ='Dati input'!$D$32 -> 0 | I20: =IF(A20="","",'Dati input'!$AJ$25) -> 0 | J20: 487 | K20: 1.334246575
A21: =IF(OR(A20='Dati input'!$AF$22,A20=""),"",A20+1) -> 17 | B21: 30 | C21: 2022-02-01 | D21: =IF(A21="","",IF(A21<='Dati input'!$AF$23,'Dati input'!$D$36,'Dati input'!$D$37)+I21+H21) ->  | E21: =IF(A21="","",IF(A21<='Dati input'!$AF$23,'Dati input'!$D$36,'Dati input'!$D$30/12*PAM!G20)) ->  | H21: ='Dati input'!$D$32 -> 0 | I21: =IF(A21="","",'Dati input'!$AJ$25) -> 0 | J21: 518 | K21: 1.419178082
A22: =IF(OR(A21='Dati input'!$AF$22,A21=""),"",A21+1) -> 18 | B22: 30 | C22: 2022-03-01 | D22: =IF(A22="","",IF(A22<='Dati input'!$AF$23,'Dati input'!$D$36,'Dati input'!$D$37)+I22+H22) ->  | E22: =IF(A22="","",IF(A22<='Dati input'!$AF$23,'Dati input'!$D$36,'Dati input'!$D$30/12*PAM!G21)) ->  | H22: ='Dati input'!$D$32 -> 0 | I22: =IF(A22="","",'Dati input'!$AJ$25) -> 0 | J22: 546 | K22: 1.495890411
A23: =IF(OR(A22='Dati input'!$AF$22,A22=""),"",A22+1) -> 19 | B23: 30 | C23: 2022-04-01 | D23: =IF(A23="","",IF(A23<='Dati input'!$AF$23,'Dati input'!$D$36,'Dati input'!$D$37)+I23+H23) ->  | E23: =IF(A23="","",IF(A23<='Dati input'!$AF$23,'Dati input'!$D$36,'Dati input'!$D$30/12*PAM!G22)) ->  | H23: ='Dati input'!$D$32 -> 0 | I23: =IF(A23="","",'Dati input'!$AJ$25) -> 0 | J23: 577 | K23: 1.580821918
A24: =IF(OR(A23='Dati input'!$AF$22,A23=""),"",A23+1) -> 20 | B24: 30 | C24: 2022-05-01 | D24: =IF(A24="","",IF(A24<='Dati input'!$AF$23,'Dati input'!$D$36,'Dati input'!$D$37)+I24+H24) ->  | E24: =IF(A24="","",IF(A24<='Dati input'!$AF$23,'Dati input'!$D$36,'Dati input'!$D$30/12*PAM!G23)) ->  | H24: ='Dati input'!$D$32 -> 0 | I24: =IF(A24="","",'Dati input'!$AJ$25) -> 0 | J24: 607 | K24: 1.663013699
A25: =IF(OR(A24='Dati input'!$AF$22,A24=""),"",A24+1) -> 21 | B25: 30 | C25: 2022-06-01 | D25: =IF(A25="","",IF(A25<='Dati input'!$AF$23,'Dati input'!$D$36,'Dati input'!$D$37)+I25+H25) ->  | E25: =IF(A25="","",IF(A25<='Dati input'!$AF$23,'Dati input'!$D$36,'Dati input'!$D$30/12*PAM!G24)) ->  | H25: ='Dati input'!$D$32 -> 0 | I25: =IF(A25="","",'Dati input'!$AJ$25) -> 0 | J25: 638 | K25: 1.747945205
A26: =IF(OR(A25='Dati input'!$AF$22,A25=""),"",A25+1) -> 22 | B26: 30 | C26: 2022-07-01 | D26: =IF(A26="","",IF(A26<='Dati input'!$AF$23,'Dati input'!$D$36,'Dati input'!$D$37)+I26+H26) ->  | E26: =IF(A26="","",IF(A26<='Dati input'!$AF$23,'Dati input'!$D$36,'Dati input'!$D$30/12*PAM!G25)) ->  | H26: ='Dati input'!$D$32 -> 0 | I26: =IF(A26="","",'Dati input'!$AJ$25) -> 0 | J26: 668 | K26: 1.830136986
A27: =IF(OR(A26='Dati input'!$AF$22,A26=""),"",A26+1) -> 23 | B27: 30 | C27: 2022-08-01 | D27: =IF(A27="","",IF(A27<='Dati input'!$AF$23,'Dati input'!$D$36,'Dati input'!$D$37)+I27+H27) ->  | E27: =IF(A27="","",IF(A27<='Dati input'!$AF$23,'Dati input'!$D$36,'Dati input'!$D$30/12*PAM!G26)) ->  | H27: ='Dati input'!$D$32 -> 0 | I27: =IF(A27="","",'Dati input'!$AJ$25) -> 0 | J27: 699 | K27: 1.915068493
A28: =IF(OR(A27='Dati input'!$AF$22,A27=""),"",A27+1) -> 24 | B28: 30 | C28: 2022-09-01 | D28: =IF(A28="","",IF(A28<='Dati input'!$AF$23,'Dati input'!$D$36,'Dati input'!$D$37)+I28+H28) ->  | E28: =IF(A28="","",IF(A28<='Dati input'!$AF$23,'Dati input'!$D$36,'Dati input'!$D$30/12*PAM!G27)) ->  | H28: ='Dati input'!$D$32 -> 0 | I28: =IF(A28="","",'Dati input'!$AJ$25) -> 0 | J28: 730 | K28: 2
A29: =IF(OR(A28='Dati input'!$AF$22,A28=""),"",A28+1) -> 25 | B29: 30 | C29: 2022-10-01 | D29: =IF(A29="","",IF(A29<='Dati input'!$AF$23,'Dati input'!$D$36,'Dati input'!$D$37)+I29+H29) ->  | E29: =IF(A29="","",IF(A29<='Dati input'!$AF$23,'Dati input'!$D$36,'Dati input'!$D$30/12*PAM!G28)) ->  | H29: ='Dati input'!$D$32 -> 0 | I29: =IF(A29="","",'Dati input'!$AJ$25) -> 0 | J29: 760 | K29: 2.082191781
A30: =IF(OR(A29='Dati input'!$AF$22,A29=""),"",A29+1) -> 26 | B30: 30 | C30: 2022-11-01 | D30: =IF(A30="","",IF(A30<='Dati input'!$AF$23,'Dati input'!$D$36,'Dati input'!$D$37)+I30+H30) ->  | E30: =IF(A30="","",IF(A30<='Dati input'!$AF$23,'Dati input'!$D$36,'Dati input'!$D$30/12*PAM!G29)) ->  | H30: ='Dati input'!$D$32 -> 0 | I30: =IF(A30="","",'Dati input'!$AJ$25) -> 0 | J30: 791 | K30: 2.167123288
A31: =IF(OR(A30='Dati input'!$AF$22,A30=""),"",A30+1) -> 27 | B31: 30 | C31: 2022-12-01 | D31: =IF(A31="","",IF(A31<='Dati input'!$AF$23,'Dati input'!$D$36,'Dati input'!$D$37)+I31+H31) ->  | E31: =IF(A31="","",IF(A31<='Dati input'!$AF$23,'Dati input'!$D$36,'Dati input'!$D$30/12*PAM!G30)) ->  | H31: ='Dati input'!$D$32 -> 0 | I31: =IF(A31="","",'Dati input'!$AJ$25) -> 0 | J31: 821 | K31: 2.249315068
A32: =IF(OR(A31='Dati input'!$AF$22,A31=""),"",A31+1) -> 28 | B32: 30 | C32: 2023-01-01 | D32: =IF(A32="","",IF(A32<='Dati input'!$AF$23,'Dati input'!$D$36,'Dati input'!$D$37)+I32+H32) ->  | E32: =IF(A32="","",IF(A32<='Dati input'!$AF$23,'Dati input'!$D$36,'Dati input'!$D$30/12*PAM!G31)) ->  | H32: ='Dati input'!$D$32 -> 0 | I32: =IF(A32="","",'Dati input'!$AJ$25) -> 0 | J32: 852 | K32: 2.334246575
A33: =IF(OR(A32='Dati input'!$AF$22,A32=""),"",A32+1) -> 29 | B33: 30 | C33: 2023-02-01 | D33: =IF(A33="","",IF(A33<='Dati input'!$AF$23,'Dati input'!$D$36,'Dati input'!$D$37)+I33+H33) ->  | E33: =IF(A33="","",IF(A33<='Dati input'!$AF$23,'Dati input'!$D$36,'Dati input'!$D$30/12*PAM!G32)) ->  | H33: ='Dati input'!$D$32 -> 0 | I33: =IF(A33="","",'Dati input'!$AJ$25) -> 0 | J33: 883 | K33: 2.419178082
A34: =IF(OR(A33='Dati input'!$AF$22,A33=""),"",A33+1) -> 30 | B34: 30 | C34: 2023-03-01 | D34: =IF(A34="","",IF(A34<='Dati input'!$AF$23,'Dati input'!$D$36,'Dati input'!$D$37)+I34+H34) ->  | E34: =IF(A34="","",IF(A34<='Dati input'!$AF$23,'Dati input'!$D$36,'Dati input'!$D$30/12*PAM!G33)) ->  | H34: ='Dati input'!$D$32 -> 0 | I34: =IF(A34="","",'Dati input'!$AJ$25) -> 0 | J34: 911 | K34: 2.495890411
A35: =IF(OR(A34='Dati input'!$AF$22,A34=""),"",A34+1) -> 31 | B35: 30 | C35: 2023-04-01 | D35: =IF(A35="","",IF(A35<='Dati input'!$AF$23,'Dati input'!$D$36,'Dati input'!$D$37)+I35+H35) ->  | E35: =IF(A35="","",IF(A35<='Dati input'!$AF$23,'Dati input'!$D$36,'Dati input'!$D$30/12*PAM!G34)) ->  | H35: ='Dati input'!$D$32 -> 0 | I35: =IF(A35="","",'Dati input'!$AJ$25) -> 0 | J35: 942 | K35: 2.580821918
A36: =IF(OR(A35='Dati input'!$AF$22,A35=""),"",A35+1) -> 32 | B36: 30 | C36: 2023-05-01 | D36: =IF(A36="","",IF(A36<='Dati input'!$AF$23,'Dati input'!$D$36,'Dati input'!$D$37)+I36+H36) ->  | E36: =IF(A36="","",IF(A36<='Dati input'!$AF$23,'Dati input'!$D$36,'Dati input'!$D$30/12*PAM!G35)) ->  | H36: ='Dati input'!$D$32 -> 0 | I36: =IF(A36="","",'Dati input'!$AJ$25) -> 0 | J36: 972 | K36: 2.663013699
A37: =IF(OR(A36='Dati input'!$AF$22,A36=""),"",A36+1) -> 33 | B37: 30 | C37: 2023-06-01 | D37: =IF(A37="","",IF(A37<='Dati input'!$AF$23,'Dati input'!$D$36,'Dati input'!$D$37)+I37+H37) ->  | E37: =IF(A37="","",IF(A37<='Dati input'!$AF$23,'Dati input'!$D$36,'Dati input'!$D$30/12*PAM!G36)) ->  | H37: ='Dati input'!$D$32 -> 0 | I37: =IF(A37="","",'Dati input'!$AJ$25) -> 0 | J37: 1003 | K37: 2.747945205
A38: =IF(OR(A37='Dati input'!$AF$22,A37=""),"",A37+1) -> 34 | B38: 30 | C38: 2023-07-01 | D38: =IF(A38="","",IF(A38<='Dati input'!$AF$23,'Dati input'!$D$36,'Dati input'!$D$37)+I38+H38) ->  | E38: =IF(A38="","",IF(A38<='Dati input'!$AF$23,'Dati input'!$D$36,'Dati input'!$D$30/12*PAM!G37)) ->  | H38: ='Dati input'!$D$32 -> 0 | I38: =IF(A38="","",'Dati input'!$AJ$25) -> 0 | J38: 1033 | K38: 2.830136986
A39: =IF(OR(A38='Dati input'!$AF$22,A38=""),"",A38+1) -> 35 | B39: 30 | C39: 2023-08-01 | D39: =IF(A39="","",IF(A39<='Dati input'!$AF$23,'Dati input'!$D$36,'Dati input'!$D$37)+I39+H39) ->  | E39: =IF(A39="","",IF(A39<='Dati input'!$AF$23,'Dati input'!$D$36,'Dati input'!$D$30/12*PAM!G38)) ->  | H39: ='Dati input'!$D$32 -> 0 | I39: =IF(A39="","",'Dati input'!$AJ$25) -> 0 | J39: 1064 | K39: 2.915068493
A40: =IF(OR(A39='Dati input'!$AF$22,A39=""),"",A39+1) -> 36 | B40: 30 | C40: 2023-09-01 | D40: =IF(A40="","",IF(A40<='Dati input'!$AF$23,'Dati input'!$D$36,'Dati input'!$D$37)+I40+H40) ->  | E40: =IF(A40="","",IF(A40<='Dati input'!$AF$23,'Dati input'!$D$36,'Dati input'!$D$30/12*PAM!G39)) ->  | H40: ='Dati input'!$D$32 -> 0 | I40: =IF(A40="","",'Dati input'!$AJ$25) -> 0 | J40: 1095 | K40: 3
A41: =IF(OR(A40='Dati input'!$AF$22,A40=""),"",A40+1) -> 37 | B41: 30 | C41: 2023-10-01 | D41: =IF(A41="","",IF(A41<='Dati input'!$AF$23,'Dati input'!$D$36,'Dati input'!$D$37)+I41+H41) ->  | E41: =IF(A41="","",IF(A41<='Dati input'!$AF$23,'Dati input'!$D$36,'Dati input'!$D$30/12*PAM!G40)) ->  | H41: ='Dati input'!$D$32 -> 0 | I41: =IF(A41="","",'Dati input'!$AJ$25) -> 0 | J41: 1125 | K41: 3.082191781
A42: =IF(OR(A41='Dati input'!$AF$22,A41=""),"",A41+1) -> 38 | B42: 30 | C42: 2023-11-01 | D42: =IF(A42="","",IF(A42<='Dati input'!$AF$23,'Dati input'!$D$36,'Dati input'!$D$37)+I42+H42) ->  | E42: =IF(A42="","",IF(A42<='Dati input'!$AF$23,'Dati input'!$D$36,'Dati input'!$D$30/12*PAM!G41)) ->  | H42: ='Dati input'!$D$32 -> 0 | I42: =IF(A42="","",'Dati input'!$AJ$25) -> 0 | J42: 1156 | K42: 3.167123288
A43: =IF(OR(A42='Dati input'!$AF$22,A42=""),"",A42+1) -> 39 | B43: 30 | C43: 2023-12-01 | D43: =IF(A43="","",IF(A43<='Dati input'!$AF$23,'Dati input'!$D$36,'Dati input'!$D$37)+I43+H43) ->  | E43: =IF(A43="","",IF(A43<='Dati input'!$AF$23,'Dati input'!$D$36,'Dati input'!$D$30/12*PAM!G42)) ->  | H43: ='Dati input'!$D$32 -> 0 | I43: =IF(A43="","",'Dati input'!$AJ$25) -> 0 | J43: 1186 | K43: 3.249315068
A44: =IF(OR(A43='Dati input'!$AF$22,A43=""),"",A43+1) -> 40 | B44: 30 | C44: 2024-01-01 | D44: =IF(A44="","",IF(A44<='Dati input'!$AF$23,'Dati input'!$D$36,'Dati input'!$D$37)+I44+H44) ->  | E44: =IF(A44="","",IF(A44<='Dati input'!$AF$23,'Dati input'!$D$36,'Dati input'!$D$30/12*PAM!G43)) ->  | H44: ='Dati input'!$D$32 -> 0 | I44: =IF(A44="","",'Dati input'!$AJ$25) -> 0 | J44: 1217 | K44: 3.334246575
A45: =IF(OR(A44='Dati input'!$AF$22,A44=""),"",A44+1) -> 41 | B45: 30 | C45: 2024-02-01 | D45: =IF(A45="","",IF(A45<='Dati input'!$AF$23,'Dati input'!$D$36,'Dati input'!$D$37)+I45+H45) ->  | E45: =IF(A45="","",IF(A45<='Dati input'!$AF$23,'Dati input'!$D$36,'Dati input'!$D$30/12*PAM!G44)) ->  | H45: ='Dati input'!$D$32 -> 0 | I45: =IF(A45="","",'Dati input'!$AJ$25) -> 0 | J45: 1248 | K45: 3.419178082
A46: =IF(OR(A45='Dati input'!$AF$22,A45=""),"",A45+1) -> 42 | B46: 30 | C46: 2024-03-01 | D46: =IF(A46="","",IF(A46<='Dati input'!$AF$23,'Dati input'!$D$36,'Dati input'!$D$37)+I46+H46) ->  | E46: =IF(A46="","",IF(A46<='Dati input'!$AF$23,'Dati input'!$D$36,'Dati input'!$D$30/12*PAM!G45)) ->  | H46: ='Dati input'!$D$32 -> 0 | I46: =IF(A46="","",'Dati input'!$AJ$25) -> 0 | J46: 1277 | K46: 3.498630137
A47: =IF(OR(A46='Dati input'!$AF$22,A46=""),"",A46+1) -> 43 | B47: 30 | C47: 2024-04-01 | D47: =IF(A47="","",IF(A47<='Dati input'!$AF$23,'Dati input'!$D$36,'Dati input'!$D$37)+I47+H47) ->  | E47: =IF(A47="","",IF(A47<='Dati input'!$AF$23,'Dati input'!$D$36,'Dati input'!$D$30/12*PAM!G46)) ->  | H47: ='Dati input'!$D$32 -> 0 | I47: =IF(A47="","",'Dati input'!$AJ$25) -> 0 | J47: 1308 | K47: 3.583561644
A48: =IF(OR(A47='Dati input'!$AF$22,A47=""),"",A47+1) -> 44 | B48: 30 | C48: 2024-05-01 | D48: =IF(A48="","",IF(A48<='Dati input'!$AF$23,'Dati input'!$D$36,'Dati input'!$D$37)+I48+H48) ->  | E48: =IF(A48="","",IF(A48<='Dati input'!$AF$23,'Dati input'!$D$36,'Dati input'!$D$30/12*PAM!G47)) ->  | H48: ='Dati input'!$D$32 -> 0 | I48: =IF(A48="","",'Dati input'!$AJ$25) -> 0 | J48: 1338 | K48: 3.665753425
A49: =IF(OR(A48='Dati input'!$AF$22,A48=""),"",A48+1) -> 45 | B49: 30 | C49: 2024-06-01 | D49: =IF(A49="","",IF(A49<='Dati input'!$AF$23,'Dati input'!$D$36,'Dati input'!$D$37)+I49+H49) ->  | E49: =IF(A49="","",IF(A49<='Dati input'!$AF$23,'Dati input'!$D$36,'Dati input'!$D$30/12*PAM!G48)) ->  | H49: ='Dati input'!$D$32 -> 0 | I49: =IF(A49="","",'Dati input'!$AJ$25) -> 0 | J49: 1369 | K49: 3.750684932
A50: =IF(OR(A49='Dati input'!$AF$22,A49=""),"",A49+1) -> 46 | B50: 30 | C50: 2024-07-01 | D50: =IF(A50="","",IF(A50<='Dati input'!$AF$23,'Dati input'!$D$36,'Dati input'!$D$37)+I50+H50) ->  | E50: =IF(A50="","",IF(A50<='Dati input'!$AF$23,'Dati input'!$D$36,'Dati input'!$D$30/12*PAM!G49)) ->  | H50: ='Dati input'!$D$32 -> 0 | I50: =IF(A50="","",'Dati input'!$AJ$25) -> 0 | J50: 1399 | K50: 3.832876712
A51: =IF(OR(A50='Dati input'!$AF$22,A50=""),"",A50+1) -> 47 | B51: 30 | C51: 2024-08-01 | D51: =IF(A51="","",IF(A51<='Dati input'!$AF$23,'Dati input'!$D$36,'Dati input'!$D$37)+I51+H51) ->  | E51: =IF(A51="","",IF(A51<='Dati input'!$AF$23,'Dati input'!$D$36,'Dati input'!$D$30/12*PAM!G50)) ->  | H51: ='Dati input'!$D$32 -> 0 | I51: =IF(A51="","",'Dati input'!$AJ$25) -> 0 | J51: 1430 | K51: 3.917808219
A52: =IF(OR(A51='Dati input'!$AF$22,A51=""),"",A51+1) -> 48 | B52: 30 | C52: 2024-09-01 | D52: =IF(A52="","",IF(A52<='Dati input'!$AF$23,'Dati input'!$D$36,'Dati input'!$D$37)+I52+H52) ->  | E52: =IF(A52="","",IF(A52<='Dati input'!$AF$23,'Dati input'!$D$36,'Dati input'!$D$30/12*PAM!G51)) ->  | H52: ='Dati input'!$D$32 -> 0 | I52: =IF(A52="","",'Dati input'!$AJ$25) -> 0 | J52: 1461 | K52: 4.002739726
A53: =IF(OR(A52='Dati input'!$AF$22,A52=""),"",A52+1) -> 49 | B53: 30 | C53: 2024-10-01 | D53: =IF(A53="","",IF(A53<='Dati input'!$AF$23,'Dati input'!$D$36,'Dati input'!$D$37)+I53+H53) ->  | E53: =IF(A53="","",IF(A53<='Dati input'!$AF$23,'Dati input'!$D$36,'Dati input'!$D$30/12*PAM!G52)) ->  | H53: ='Dati input'!$D$32 -> 0 | I53: =IF(A53="","",'Dati input'!$AJ$25) -> 0 | J53: 1491 | K53: 4.084931507
A54: =IF(OR(A53='Dati input'!$AF$22,A53=""),"",A53+1) -> 50 | B54: 30 | C54: 2024-11-01 | D54: =IF(A54="","",IF(A54<='Dati input'!$AF$23,'Dati input'!$D$36,'Dati input'!$D$37)+I54+H54) ->  | E54: =IF(A54="","",IF(A54<='Dati input'!$AF$23,'Dati input'!$D$36,'Dati input'!$D$30/12*PAM!G53)) ->  | H54: ='Dati input'!$D$32 -> 0 | I54: =IF(A54="","",'Dati input'!$AJ$25) -> 0 | J54: 1522 | K54: 4.169863014
A55: =IF(OR(A54='Dati input'!$AF$22,A54=""),"",A54+1) -> 51 | B55: 30 | C55: 2024-12-01 | D55: =IF(A55="","",IF(A55<='Dati input'!$AF$23,'Dati input'!$D$36,'Dati input'!$D$37)+I55+H55) ->  | E55: =IF(A55="","",IF(A55<='Dati input'!$AF$23,'Dati input'!$D$36,'Dati input'!$D$30/12*PAM!G54)) ->  | H55: ='Dati input'!$D$32 -> 0 | I55: =IF(A55="","",'Dati input'!$AJ$25) -> 0 | J55: 1552 | K55: 4.252054795
A56: =IF(OR(A55='Dati input'!$AF$22,A55=""),"",A55+1) -> 52 | B56: 30 | C56: 2025-01-01 | D56: =IF(A56="","",IF(A56<='Dati input'!$AF$23,'Dati input'!$D$36,'Dati input'!$D$37)+I56+H56) ->  | E56: =IF(A56="","",IF(A56<='Dati input'!$AF$23,'Dati input'!$D$36,'Dati input'!$D$30/12*PAM!G55)) ->  | H56: ='Dati input'!$D$32 -> 0 | I56: =IF(A56="","",'Dati input'!$AJ$25) -> 0 | J56: 1583 | K56: 4.336986301
A57: =IF(OR(A56='Dati input'!$AF$22,A56=""),"",A56+1) -> 53 | B57: 30 | C57: 2025-02-01 | D57: =IF(A57="","",IF(A57<='Dati input'!$AF$23,'Dati input'!$D$36,'Dati input'!$D$37)+I57+H57) ->  | E57: =IF(A57="","",IF(A57<='Dati input'!$AF$23,'Dati input'!$D$36,'Dati input'!$D$30/12*PAM!G56)) ->  | H57: ='Dati input'!$D$32 -> 0 | I57: =IF(A57="","",'Dati input'!$AJ$25) -> 0 | J57: 1614 | K57: 4.421917808
A58: =IF(OR(A57='Dati input'!$AF$22,A57=""),"",A57+1) -> 54 | B58: 30 | C58: 2025-03-01 | D58: =IF(A58="","",IF(A58<='Dati input'!$AF$23,'Dati input'!$D$36,'Dati input'!$D$37)+I58+H58) ->  | E58: =IF(A58="","",IF(A58<='Dati input'!$AF$23,'Dati input'!$D$36,'Dati input'!$D$30/12*PAM!G57)) ->  | H58: ='Dati input'!$D$32 -> 0 | I58: =IF(A58="","",'Dati input'!$AJ$25) -> 0 | J58: 1642 | K58: 4.498630137
A59: =IF(OR(A58='Dati input'!$AF$22,A58=""),"",A58+1) -> 55 | B59: 30 | C59: 2025-04-01 | D59: =IF(A59="","",IF(A59<='Dati input'!$AF$23,'Dati input'!$D$36,'Dati input'!$D$37)+I59+H59) ->  | E59: =IF(A59="","",IF(A59<='Dati input'!$AF$23,'Dati input'!$D$36,'Dati input'!$D$30/12*PAM!G58)) ->  | H59: ='Dati input'!$D$32 -> 0 | I59: =IF(A59="","",'Dati input'!$AJ$25) -> 0 | J59: 1673 | K59: 4.583561644
A60: =IF(OR(A59='Dati input'!$AF$22,A59=""),"",A59+1) -> 56 | B60: 30 | C60: 2025-05-01 | D60: =IF(A60="","",IF(A60<='Dati input'!$AF$23,'Dati input'!$D$36,'Dati input'!$D$37)+I60+H60) ->  | E60: =IF(A60="","",IF(A60<='Dati input'!$AF$23,'Dati input'!$D$36,'Dati input'!$D$30/12*PAM!G59)) ->  | H60: ='Dati input'!$D$32 -> 0 | I60: =IF(A60="","",'Dati input'!$AJ$25) -> 0 | J60: 1703 | K60: 4.665753425
A61: =IF(OR(A60='Dati input'!$AF$22,A60=""),"",A60+1) -> 57 | B61: 30 | C61: 2025-06-01 | D61: =IF(A61="","",IF(A61<='Dati input'!$AF$23,'Dati input'!$D$36,'Dati input'!$D$37)+I61+H61) ->  | E61: =IF(A61="","",IF(A61<='Dati input'!$AF$23,'Dati input'!$D$36,'Dati input'!$D$30/12*PAM!G60)) ->  | H61: ='Dati input'!$D$32 -> 0 | I61: =IF(A61="","",'Dati input'!$AJ$25) -> 0 | J61: 1734 | K61: 4.750684932
A62: =IF(OR(A61='Dati input'!$AF$22,A61=""),"",A61+1) -> 58 | B62: 30 | C62: 2025-07-01 | D62: =IF(A62="","",IF(A62<='Dati input'!$AF$23,'Dati input'!$D$36,'Dati input'!$D$37)+I62+H62) ->  | E62: =IF(A62="","",IF(A62<='Dati input'!$AF$23,'Dati input'!$D$36,'Dati input'!$D$30/12*PAM!G61)) ->  | H62: ='Dati input'!$D$32 -> 0 | I62: =IF(A62="","",'Dati input'!$AJ$25) -> 0 | J62: 1764 | K62: 4.832876712
A63: =IF(OR(A62='Dati input'!$AF$22,A62=""),"",A62+1) -> 59 | B63: 30 | C63: 2025-08-01 | D63: =IF(A63="","",IF(A63<='Dati input'!$AF$23,'Dati input'!$D$36,'Dati input'!$D$37)+I63+H63) ->  | E63: =IF(A63="","",IF(A63<='Dati input'!$AF$23,'Dati input'!$D$36,'Dati input'!$D$30/12*PAM!G62)) ->  | H63: ='Dati input'!$D$32 -> 0 | I63: =IF(A63="","",'Dati input'!$AJ$25) -> 0 | J63: 1795 | K63: 4.917808219
A64: =IF(OR(A63='Dati input'!$AF$22,A63=""),"",A63+1) -> 60 | B64: 30 | C64: 2025-09-01 | D64: =IF(A64="","",IF(A64<='Dati input'!$AF$23,'Dati input'!$D$36,'Dati input'!$D$37)+I64+H64) ->  | E64: =IF(A64="","",IF(A64<='Dati input'!$AF$23,'Dati input'!$D$36,'Dati input'!$D$30/12*PAM!G63)) ->  | H64: ='Dati input'!$D$32 -> 0 | I64: =IF(A64="","",'Dati input'!$AJ$25) -> 0 | J64: 1826 | K64: 5.002739726
A65: =IF(OR(A64='Dati input'!$AF$22,A64=""),"",A64+1) -> 61 | B65: 30 | C65: 2025-10-01 | D65: =IF(A65="","",IF(A65<='Dati input'!$AF$23,'Dati input'!$D$36,'Dati input'!$D$37)+I65+H65) ->  | E65: =IF(A65="","",IF(A65<='Dati input'!$AF$23,'Dati input'!$D$36,'Dati input'!$D$30/12*PAM!G64)) ->  | H65: ='Dati input'!$D$32 -> 0 | I65: =IF(A65="","",'Dati input'!$AJ$25) -> 0 | J65: 1856 | K65: 5.084931507
A66: =IF(OR(A65='Dati input'!$AF$22,A65=""),"",A65+1) -> 62 | B66: 30 | C66: 2025-11-01 | D66: =IF(A66="","",IF(A66<='Dati input'!$AF$23,'Dati input'!$D$36,'Dati input'!$D$37)+I66+H66) ->  | E66: =IF(A66="","",IF(A66<='Dati input'!$AF$23,'Dati input'!$D$36,'Dati input'!$D$30/12*PAM!G65)) ->  | H66: ='Dati input'!$D$32 -> 0 | I66: =IF(A66="","",'Dati input'!$AJ$25) -> 0 | J66: 1887 | K66: 5.169863014
A67: =IF(OR(A66='Dati input'!$AF$22,A66=""),"",A66+1) -> 63 | B67: 30 | C67: 2025-12-01 | D67: =IF(A67="","",IF(A67<='Dati input'!$AF$23,'Dati input'!$D$36,'Dati input'!$D$37)+I67+H67) ->  | E67: =IF(A67="","",IF(A67<='Dati input'!$AF$23,'Dati input'!$D$36,'Dati input'!$D$30/12*PAM!G66)) ->  | H67: ='Dati input'!$D$32 -> 0 | I67: =IF(A67="","",'Dati input'!$AJ$25) -> 0 | J67: 1917 | K67: 5.252054795
A68: =IF(OR(A67='Dati input'!$AF$22,A67=""),"",A67+1) -> 64 | B68: 30 | C68: 2026-01-01 | D68: =IF(A68="","",IF(A68<='Dati input'!$AF$23,'Dati input'!$D$36,'Dati input'!$D$37)+I68+H68) ->  | E68: =IF(A68="","",IF(A68<='Dati input'!$AF$23,'Dati input'!$D$36,'Dati input'!$D$30/12*PAM!G67)) ->  | H68: ='Dati input'!$D$32 -> 0 | I68: =IF(A68="","",'Dati input'!$AJ$25) -> 0 | J68: 1948 | K68: 5.336986301
A69: =IF(OR(A68='Dati input'!$AF$22,A68=""),"",A68+1) -> 65 | B69: 30 | C69: 2026-02-01 | D69: =IF(A69="","",IF(A69<='Dati input'!$AF$23,'Dati input'!$D$36,'Dati input'!$D$37)+I69+H69) ->  | E69: =IF(A69="","",IF(A69<='Dati input'!$AF$23,'Dati input'!$D$36,'Dati input'!$D$30/12*PAM!G68)) ->  | H69: ='Dati input'!$D$32 -> 0 | I69: =IF(A69="","",'Dati input'!$AJ$25) -> 0 | J69: 1979 | K69: 5.421917808
A70: =IF(OR(A69='Dati input'!$AF$22,A69=""),"",A69+1) -> 66 | B70: =IF(A70="","",30) -> 30 | C70: =EDATE(C69,1) -> 2026-03-01 | D70: =IF(A70="","",IF(A70<='Dati input'!$AF$23,'Dati input'!$D$36,'Dati input'!$D$37)+I70+H70) ->  | E70: =IF(A70="","",IF(A70<='Dati input'!$AF$23,'Dati input'!$D$36,'Dati input'!$D$30/12*PAM!G69)) ->  | F70: =IF(A70="","",D70-E70-I70-H70) ->  | G70: =IF(A70="","",G69-F70) ->  | H70: ='Dati input'!$D$32 -> 0 | I70: =IF(A70="","",'Dati input'!$AJ$25) -> 0 | J70: 2007 | K70: =J70/365 -> 5.498630137 | L70: =IF(A70="",0,D70) ->  | M70: =IF(A70="",0,L70/(1+$N$3)^K70) -> 
A71: =IF(OR(A70='Dati input'!$AF$22,A70=""),"",A70+1) -> 67 | B71: 30 | C71: 2026-04-01 | D71: =IF(A71="","",IF(A71<='Dati input'!$AF$23,'Dati input'!$D$36,'Dati input'!$D$37)+I71+H71) ->  | E71: =IF(A71="","",IF(A71<='Dati input'!$AF$23,'Dati input'!$D$36,'Dati input'!$D$30/12*PAM!G70)) ->  | H71: ='Dati input'!$D$32 -> 0 | I71: =IF(A71="","",'Dati input'!$AJ$25) -> 0 | J71: =J70+C71-C70 -> 2038 | K71: 5.583561644
A72: =IF(OR(A71='Dati input'!$AF$22,A71=""),"",A71+1) -> 68 | B72: 30 | C72: 2026-05-01 | D72: =IF(A72="","",IF(A72<='Dati input'!$AF$23,'Dati input'!$D$36,'Dati input'!$D$37)+I72+H72) ->  | E72: =IF(A72="","",IF(A72<='Dati input'!$AF$23,'Dati input'!$D$36,'Dati input'!$D$30/12*PAM!G71)) ->  | H72: ='Dati input'!$D$32 -> 0 | I72: =IF(A72="","",'Dati input'!$AJ$25) -> 0 | J72: 2068 | K72: 5.665753425
A73: =IF(OR(A72='Dati input'!$AF$22,A72=""),"",A72+1) -> 69 | B73: 30 | C73: 2026-06-01 | D73: =IF(A73="","",IF(A73<='Dati input'!$AF$23,'Dati input'!$D$36,'Dati input'!$D$37)+I73+H73) ->  | E73: =IF(A73="","",IF(A73<='Dati input'!$AF$23,'Dati input'!$D$36,'Dati input'!$D$30/12*PAM!G72)) ->  | H73: ='Dati input'!$D$32 -> 0 | I73: =IF(A73="","",'Dati input'!$AJ$25) -> 0 | J73: 2099 | K73: 5.750684932
A74: =IF(OR(A73='Dati input'!$AF$22,A73=""),"",A73+1) -> 70 | B74: 30 | C74: 2026-07-01 | D74: =IF(A74="","",IF(A74<='Dati input'!$AF$23,'Dati input'!$D$36,'Dati input'!$D$37)+I74+H74) ->  | E74: =IF(A74="","",IF(A74<='Dati input'!$AF$23,'Dati input'!$D$36,'Dati input'!$D$30/12*PAM!G73)) ->  | H74: ='Dati input'!$D$32 -> 0 | I74: =IF(A74="","",'Dati input'!$AJ$25) -> 0 | J74: 2129 | K74: 5.832876712
A75: =IF(OR(A74='Dati input'!$AF$22,A74=""),"",A74+1) -> 71 | B75: 30 | C75: 2026-08-01 | D75: =IF(A75="","",IF(A75<='Dati input'!$AF$23,'Dati input'!$D$36,'Dati input'!$D$37)+I75+H75) ->  | E75: =IF(A75="","",IF(A75<='Dati input'!$AF$23,'Dati input'!$D$36,'Dati input'!$D$30/12*PAM!G74)) ->  | H75: ='Dati input'!$D$32 -> 0 | I75: =IF(A75="","",'Dati input'!$AJ$25) -> 0 | J75: 2160 | K75: 5.917808219
A76: =IF(OR(A75='Dati input'!$AF$22,A75=""),"",A75+1) -> 72 | B76: 30 | C76: 2026-09-01 | D76: =IF(A76="","",IF(A76<='Dati input'!$AF$23,'Dati input'!$D$36,'Dati input'!$D$37)+I76+H76) ->  | E76: =IF(A76="","",IF(A76<='Dati input'!$AF$23,'Dati input'!$D$36,'Dati input'!$D$30/12*PAM!G75)) ->  | H76: ='Dati input'!$D$32 -> 0 | I76: =IF(A76="","",'Dati input'!$AJ$25) -> 0 | J76: 2191 | K76: 6.002739726
A77: =IF(OR(A76='Dati input'!$AF$22,A76=""),"",A76+1) -> 73 | B77: 30 | C77: 2026-10-01 | D77: =IF(A77="","",IF(A77<='Dati input'!$AF$23,'Dati input'!$D$36,'Dati input'!$D$37)+I77+H77) ->  | E77: =IF(A77="","",IF(A77<='Dati input'!$AF$23,'Dati input'!$D$36,'Dati input'!$D$30/12*PAM!G76)) ->  | H77: ='Dati input'!$D$32 -> 0 | I77: =IF(A77="","",'Dati input'!$AJ$25) -> 0 | J77: 2221 | K77: 6.084931507
A78: =IF(OR(A77='Dati input'!$AF$22,A77=""),"",A77+1) -> 74 | B78: 30 | C78: 2026-11-01 | D78: =IF(A78="","",IF(A78<='Dati input'!$AF$23,'Dati input'!$D$36,'Dati input'!$D$37)+I78+H78) ->  | E78: =IF(A78="","",IF(A78<='Dati input'!$AF$23,'Dati input'!$D$36,'Dati input'!$D$30/12*PAM!G77)) ->  | H78: ='Dati input'!$D$32 -> 0 | I78: =IF(A78="","",'Dati input'!$AJ$25) -> 0 | J78: 2252 | K78: 6.169863014
A79: =IF(OR(A78='Dati input'!$AF$22,A78=""),"",A78+1) -> 75 | B79: 30 | C79: 2026-12-01 | D79: =IF(A79="","",IF(A79<='Dati input'!$AF$23,'Dati input'!$D$36,'Dati input'!$D$37)+I79+H79) ->  | E79: =IF(A79="","",IF(A79<='Dati input'!$AF$23,'Dati input'!$D$36,'Dati input'!$D$30/12*PAM!G78)) ->  | H79: ='Dati input'!$D$32 -> 0 | I79: =IF(A79="","",'Dati input'!$AJ$25) -> 0 | J79: 2282 | K79: 6.252054795
A80: =IF(OR(A79='Dati input'!$AF$22,A79=""),"",A79+1) -> 76 | B80: 30 | C80: 2027-01-01 | D80: =IF(A80="","",IF(A80<='Dati input'!$AF$23,'Dati input'!$D$36,'Dati input'!$D$37)+I80+H80) ->  | E80: =IF(A80="","",IF(A80<='Dati input'!$AF$23,'Dati input'!$D$36,'Dati input'!$D$30/12*PAM!G79)) ->  | H80: ='Dati input'!$D$32 -> 0 | I80: =IF(A80="","",'Dati input'!$AJ$25) -> 0 | J80: 2313 | K80: 6.336986301
A81: =IF(OR(A80='Dati input'!$AF$22,A80=""),"",A80+1) -> 77 | B81: 30 | C81: 2027-02-01 | D81: =IF(A81="","",IF(A81<='Dati input'!$AF$23,'Dati input'!$D$36,'Dati input'!$D$37)+I81+H81) ->  | E81: =IF(A81="","",IF(A81<='Dati input'!$AF$23,'Dati input'!$D$36,'Dati input'!$D$30/12*PAM!G80)) ->  | H81: ='Dati input'!$D$32 -> 0 | I81: =IF(A81="","",'Dati input'!$AJ$25) -> 0 | J81: 2344 | K81: 6.421917808
A82: =IF(OR(A81='Dati input'!$AF$22,A81=""),"",A81+1) -> 78 | B82: 30 | C82: 2027-03-01 | D82: =IF(A82="","",IF(A82<='Dati input'!$AF$23,'Dati input'!$D$36,'Dati input'!$D$37)+I82+H82) ->  | E82: =IF(A82="","",IF(A82<='Dati input'!$AF$23,'Dati input'!$D$36,'Dati input'!$D$30/12*PAM!G81)) ->  | H82: ='Dati input'!$D$32 -> 0 | I82: =IF(A82="","",'Dati input'!$AJ$25) -> 0 | J82: 2372 | K82: 6.498630137
A83: =IF(OR(A82='Dati input'!$AF$22,A82=""),"",A82+1) -> 79 | B83: 30 | C83: 2027-04-01 | D83: =IF(A83="","",IF(A83<='Dati input'!$AF$23,'Dati input'!$D$36,'Dati input'!$D$37)+I83+H83) ->  | E83: =IF(A83="","",IF(A83<='Dati input'!$AF$23,'Dati input'!$D$36,'Dati input'!$D$30/12*PAM!G82)) ->  | H83: ='Dati input'!$D$32 -> 0 | I83: =IF(A83="","",'Dati input'!$AJ$25) -> 0 | J83: 2403 | K83: 6.583561644
A84: =IF(OR(A83='Dati input'!$AF$22,A83=""),"",A83+1) -> 80 | B84: 30 | C84: 2027-05-01 | D84: =IF(A84="","",IF(A84<='Dati input'!$AF$23,'Dati input'!$D$36,'Dati input'!$D$37)+I84+H84) ->  | E84: =IF(A84="","",IF(A84<='Dati input'!$AF$23,'Dati input'!$D$36,'Dati input'!$D$30/12*PAM!G83)) ->  | H84: ='Dati input'!$D$32 -> 0 | I84: =IF(A84="","",'Dati input'!$AJ$25) -> 0 | J84: 2433 | K84: 6.665753425
A85: =IF(OR(A84='Dati input'!$AF$22,A84=""),"",A84+1) -> 81 | B85: 30 | C85: 2027-06-01 | D85: =IF(A85="","",IF(A85<='Dati input'!$AF$23,'Dati input'!$D$36,'Dati input'!$D$37)+I85+H85) ->  | E85: =IF(A85="","",IF(A85<='Dati input'!$AF$23,'Dati input'!$D$36,'Dati input'!$D$30/12*PAM!G84)) ->  | H85: ='Dati input'!$D$32 -> 0 | I85: =IF(A85="","",'Dati input'!$AJ$25) -> 0 | J85: 2464 | K85: 6.750684932
A86: =IF(OR(A85='Dati input'!$AF$22,A85=""),"",A85+1) -> 82 | B86: 30 | C86: 2027-07-01 | D86: =IF(A86="","",IF(A86<='Dati input'!$AF$23,'Dati input'!$D$36,'Dati input'!$D$37)+I86+H86) ->  | E86: =IF(A86="","",IF(A86<='Dati input'!$AF$23,'Dati input'!$D$36,'Dati input'!$D$30/12*PAM!G85)) ->  | H86: ='Dati input'!$D$32 -> 0 | I86: =IF(A86="","",'Dati input'!$AJ$25) -> 0 | J86: 2494 | K86: 6.832876712
A87: =IF(OR(A86='Dati input'!$AF$22,A86=""),"",A86+1) -> 83 | B87: 30 | C87: 2027-08-01 | D87: =IF(A87="","",IF(A87<='Dati input'!$AF$23,'Dati input'!$D$36,'Dati input'!$D$37)+I87+H87) ->  | E87: =IF(A87="","",IF(A87<='Dati input'!$AF$23,'Dati input'!$D$36,'Dati input'!$D$30/12*PAM!G86)) ->  | H87: ='Dati input'!$D$32 -> 0 | I87: =IF(A87="","",'Dati input'!$AJ$25) -> 0 | J87: 2525 | K87: 6.917808219
A88: =IF(OR(A87='Dati input'!$AF$22,A87=""),"",A87+1) -> 84 | B88: 30 | C88: 2027-09-01 | D88: =IF(A88="","",IF(A88<='Dati input'!$AF$23,'Dati input'!$D$36,'Dati input'!$D$37)+I88+H88) ->  | E88: =IF(A88="","",IF(A88<='Dati input'!$AF$23,'Dati input'!$D$36,'Dati input'!$D$30/12*PAM!G87)) ->  | H88: ='Dati input'!$D$32 -> 0 | I88: =IF(A88="","",'Dati input'!$AJ$25) -> 0 | J88: 2556 | K88: 7.002739726
A89: =IF(OR(A88='Dati input'!$AF$22,A88=""),"",A88+1) -> 85 | B89: 30 | C89: 2027-10-01 | D89: =IF(A89="","",IF(A89<='Dati input'!$AF$23,'Dati input'!$D$36,'Dati input'!$D$37)+I89+H89) ->  | E89: =IF(A89="","",IF(A89<='Dati input'!$AF$23,'Dati input'!$D$36,'Dati input'!$D$30/12*PAM!G88)) ->  | H89: ='Dati input'!$D$32 -> 0 | I89: =IF(A89="","",'Dati input'!$AJ$25) -> 0 | J89: 2586 | K89: 7.084931507
A90: =IF(OR(A89='Dati input'!$AF$22,A89=""),"",A89+1) -> 86 | B90: 30 | C90: 2027-11-01 | D90: =IF(A90="","",IF(A90<='Dati input'!$AF$23,'Dati input'!$D$36,'Dati input'!$D$37)+I90+H90) ->  | E90: =IF(A90="","",IF(A90<='Dati input'!$AF$23,'Dati input'!$D$36,'Dati input'!$D$30/12*PAM!G89)) ->  | H90: ='Dati input'!$D$32 -> 0 | I90: =IF(A90="","",'Dati input'!$AJ$25) -> 0 | J90: 2617 | K90: 7.169863014
A91: =IF(OR(A90='Dati input'!$AF$22,A90=""),"",A90+1) -> 87 | B91: 30 | C91: 2027-12-01 | D91: =IF(A91="","",IF(A91<='Dati input'!$AF$23,'Dati input'!$D$36,'Dati input'!$D$37)+I91+H91) ->  | E91: =IF(A91="","",IF(A91<='Dati input'!$AF$23,'Dati input'!$D$36,'Dati input'!$D$30/12*PAM!G90)) ->  | H91: ='Dati input'!$D$32 -> 0 | I91: =IF(A91="","",'Dati input'!$AJ$25) -> 0 | J91: 2647 | K91: 7.252054795
A92: =IF(OR(A91='Dati input'!$AF$22,A91=""),"",A91+1) -> 88 | B92: 30 | C92: 2028-01-01 | D92: =IF(A92="","",IF(A92<='Dati input'!$AF$23,'Dati input'!$D$36,'Dati input'!$D$37)+I92+H92) ->  | E92: =IF(A92="","",IF(A92<='Dati input'!$AF$23,'Dati input'!$D$36,'Dati input'!$D$30/12*PAM!G91)) ->  | H92: ='Dati input'!$D$32 -> 0 | I92: =IF(A92="","",'Dati input'!$AJ$25) -> 0 | J92: 2678 | K92: 7.336986301
A93: =IF(OR(A92='Dati input'!$AF$22,A92=""),"",A92+1) -> 89 | B93: 30 | C93: 2028-02-01 | D93: =IF(A93="","",IF(A93<='Dati input'!$AF$23,'Dati input'!$D$36,'Dati input'!$D$37)+I93+H93) ->  | E93: =IF(A93="","",IF(A93<='Dati input'!$AF$23,'Dati input'!$D$36,'Dati input'!$D$30/12*PAM!G92)) ->  | H93: ='Dati input'!$D$32 -> 0 | I93: =IF(A93="","",'Dati input'!$AJ$25) -> 0 | J93: 2709 | K93: 7.421917808
A94: =IF(OR(A93='Dati input'!$AF$22,A93=""),"",A93+1) -> 90 | B94: 30 | C94: 2028-03-01 | D94: =IF(A94="","",IF(A94<='Dati input'!$AF$23,'Dati input'!$D$36,'Dati input'!$D$37)+I94+H94) ->  | E94: =IF(A94="","",IF(A94<='Dati input'!$AF$23,'Dati input'!$D$36,'Dati input'!$D$30/12*PAM!G93)) ->  | H94: ='Dati input'!$D$32 -> 0 | I94: =IF(A94="","",'Dati input'!$AJ$25) -> 0 | J94: 2738 | K94: 7.501369863
A95: =IF(OR(A94='Dati input'!$AF$22,A94=""),"",A94+1) -> 91 | B95: 30 | C95: 2028-04-01 | D95: =IF(A95="","",IF(A95<='Dati input'!$AF$23,'Dati input'!$D$36,'Dati input'!$D$37)+I95+H95) ->  | E95: =IF(A95="","",IF(A95<='Dati input'!$AF$23,'Dati input'!$D$36,'Dati input'!$D$30/12*PAM!G94)) ->  | H95: ='Dati input'!$D$32 -> 0 | I95: =IF(A95="","",'Dati input'!$AJ$25) -> 0 | J95: 2769 | K95: 7.58630137
A96: =IF(OR(A95='Dati input'!$AF$22,A95=""),"",A95+1) -> 92 | B96: 30 | C96: 2028-05-01 | D96: =IF(A96="","",IF(A96<='Dati input'!$AF$23,'Dati input'!$D$36,'Dati input'!$D$37)+I96+H96) ->  | E96: =IF(A96="","",IF(A96<='Dati input'!$AF$23,'Dati input'!$D$36,'Dati input'!$D$30/12*PAM!G95)) ->  | H96: ='Dati input'!$D$32 -> 0 | I96: =IF(A96="","",'Dati input'!$AJ$25) -> 0 | J96: 2799 | K96: 7.668493151
A97: =IF(OR(A96='Dati input'!$AF$22,A96=""),"",A96+1) -> 93 | B97: 30 | C97: 2028-06-01 | D97: =IF(A97="","",IF(A97<='Dati input'!$AF$23,'Dati input'!$D$36,'Dati input'!$D$37)+I97+H97) ->  | E97: =IF(A97="","",IF(A97<='Dati input'!$AF$23,'Dati input'!$D$36,'Dati input'!$D$30/12*PAM!G96)) ->  | H97: ='Dati input'!$D$32 -> 0 | I97: =IF(A97="","",'Dati input'!$AJ$25) -> 0 | J97: 2830 | K97: 7.753424658
A98: =IF(OR(A97='Dati input'!$AF$22,A97=""),"",A97+1) -> 94 | B98: 30 | C98: 2028-07-01 | D98: =IF(A98="","",IF(A98<='Dati input'!$AF$23,'Dati input'!$D$36,'Dati input'!$D$37)+I98+H98) ->  | E98: =IF(A98="","",IF(A98<='Dati input'!$AF$23,'Dati input'!$D$36,'Dati input'!$D$30/12*PAM!G97)) ->  | H98: ='Dati input'!$D$32 -> 0 | I98: =IF(A98="","",'Dati input'!$AJ$25) -> 0 | J98: 2860 | K98: 7.835616438
A99: =IF(OR(A98='Dati input'!$AF$22,A98=""),"",A98+1) -> 95 | B99: 30 | C99: 2028-08-01 | D99: =IF(A99="","",IF(A99<='Dati input'!$AF$23,'Dati input'!$D$36,'Dati input'!$D$37)+I99+H99) ->  | E99: =IF(A99="","",IF(A99<='Dati input'!$AF$23,'Dati input'!$D$36,'Dati input'!$D$30/12*PAM!G98)) ->  | H99: ='Dati input'!$D$32 -> 0 | I99: =IF(A99="","",'Dati input'!$AJ$25) -> 0 | J99: 2891 | K99: 7.920547945
A100: =IF(OR(A99='Dati input'!$AF$22,A99=""),"",A99+1) -> 96 | B100: 30 | C100: 2028-09-01 | D100: =IF(A100="","",IF(A100<='Dati input'!$AF$23,'Dati input'!$D$36,'Dati input'!$D$37)+I100+H100) ->  | E100: =IF(A100="","",IF(A100<='Dati input'!$AF$23,'Dati input'!$D$36,'Dati input'!$D$30/12*PAM!G99)) ->  | H100: ='Dati input'!$D$32 -> 0 | I100: =IF(A100="","",'Dati input'!$AJ$25) -> 0 | J100: 2922 | K100: 8.005479452
A101: =IF(OR(A100='Dati input'!$AF$22,A100=""),"",A100+1) -> 97 | B101: 30 | C101: 2028-10-01 | D101: =IF(A101="","",IF(A101<='Dati input'!$AF$23,'Dati input'!$D$36,'Dati input'!$D$37)+I101+H101) ->  | E101: =IF(A101="","",IF(A101<='Dati input'!$AF$23,'Dati input'!$D$36,'Dati input'!$D$30/12*PAM!G100)) ->  | H101: ='Dati input'!$D$32 -> 0 | I101: =IF(A101="","",'Dati input'!$AJ$25) -> 0 | J101: 2952 | K101: 8.087671233
A102: =IF(OR(A101='Dati input'!$AF$22,A101=""),"",A101+1) -> 98 | B102: 30 | C102: 2028-11-01 | D102: =IF(A102="","",IF(A102<='Dati input'!$AF$23,'Dati input'!$D$36,'Dati input'!$D$37)+I102+H102) ->  | E102: =IF(A102="","",IF(A102<='Dati input'!$AF$23,'Dati input'!$D$36,'Dati input'!$D$30/12*PAM!G101)) ->  | H102: ='Dati input'!$D$32 -> 0 | I102: =IF(A102="","",'Dati input'!$AJ$25) -> 0 | J102: 2983 | K102: 8.17260274
A103: =IF(OR(A102='Dati input'!$AF$22,A102=""),"",A102+1) -> 99 | B103: 30 | C103: 2028-12-01 | D103: =IF(A103="","",IF(A103<='Dati input'!$AF$23,'Dati input'!$D$36,'Dati input'!$D$37)+I103+H103) ->  | E103: =IF(A103="","",IF(A103<='Dati input'!$AF$23,'Dati input'!$D$36,'Dati input'!$D$30/12*PAM!G102)) ->  | H103: ='Dati input'!$D$32 -> 0 | I103: =IF(A103="","",'Dati input'!$AJ$25) -> 0 | J103: 3013 | K103: 8.254794521
A104: =IF(OR(A103='Dati input'!$AF$22,A103=""),"",A103+1) -> 100 | B104: 30 | C104: 2029-01-01 | D104: =IF(A104="","",IF(A104<='Dati input'!$AF$23,'Dati input'!$D$36,'Dati input'!$D$37)+I104+H104) ->  | E104: =IF(A104="","",IF(A104<='Dati input'!$AF$23,'Dati input'!$D$36,'Dati input'!$D$30/12*PAM!G103)) ->  | H104: ='Dati input'!$D$32 -> 0 | I104: =IF(A104="","",'Dati input'!$AJ$25) -> 0 | J104: 3044 | K104: 8.339726027
A105: =IF(OR(A104='Dati input'!$AF$22,A104=""),"",A104+1) -> 101 | B105: 30 | C105: 2029-02-01 | D105: =IF(A105="","",IF(A105<='Dati input'!$AF$23,'Dati input'!$D$36,'Dati input'!$D$37)+I105+H105) ->  | E105: =IF(A105="","",IF(A105<='Dati input'!$AF$23,'Dati input'!$D$36,'Dati input'!$D$30/12*PAM!G104)) ->  | H105: ='Dati input'!$D$32 -> 0 | I105: =IF(A105="","",'Dati input'!$AJ$25) -> 0 | J105: 3075 | K105: 8.424657534
A106: =IF(OR(A105='Dati input'!$AF$22,A105=""),"",A105+1) -> 102 | B106: 30 | C106: 2029-03-01 | D106: =IF(A106="","",IF(A106<='Dati input'!$AF$23,'Dati input'!$D$36,'Dati input'!$D$37)+I106+H106) ->  | E106: =IF(A106="","",IF(A106<='Dati input'!$AF$23,'Dati input'!$D$36,'Dati input'!$D$30/12*PAM!G105)) ->  | H106: ='Dati input'!$D$32 -> 0 | I106: =IF(A106="","",'Dati input'!$AJ$25) -> 0 | J106: 3103 | K106: 8.501369863
A107: =IF(OR(A106='Dati input'!$AF$22,A106=""),"",A106+1) -> 103 | B107: 30 | C107: 2029-04-01 | D107: =IF(A107="","",IF(A107<='Dati input'!$AF$23,'Dati input'!$D$36,'Dati input'!$D$37)+I107+H107) ->  | E107: =IF(A107="","",IF(A107<='Dati input'!$AF$23,'Dati input'!$D$36,'Dati input'!$D$30/12*PAM!G106)) ->  | H107: ='Dati input'!$D$32 -> 0 | I107: =IF(A107="","",'Dati input'!$AJ$25) -> 0 | J107: 3134 | K107: 8.58630137
A108: =IF(OR(A107='Dati input'!$AF$22,A107=""),"",A107+1) -> 104 | B108: 30 | C108: 2029-05-01 | D108: =IF(A108="","",IF(A108<='Dati input'!$AF$23,'Dati input'!$D$36,'Dati input'!$D$37)+I108+H108) ->  | E108: =IF(A108="","",IF(A108<='Dati input'!$AF$23,'Dati input'!$D$36,'Dati input'!$D$30/12*PAM!G107)) ->  | H108: ='Dati input'!$D$32 -> 0 | I108: =IF(A108="","",'Dati input'!$AJ$25) -> 0 | J108: 3164 | K108: 8.668493151
A109: =IF(OR(A108='Dati input'!$AF$22,A108=""),"",A108+1) -> 105 | B109: 30 | C109: 2029-06-01 | D109: =IF(A109="","",IF(A109<='Dati input'!$AF$23,'Dati input'!$D$36,'Dati input'!$D$37)+I109+H109) ->  | E109: =IF(A109="","",IF(A109<='Dati input'!$AF$23,'Dati input'!$D$36,'Dati input'!$D$30/12*PAM!G108)) ->  | H109: ='Dati input'!$D$32 -> 0 | I109: =IF(A109="","",'Dati input'!$AJ$25) -> 0 | J109: 3195 | K109: 8.753424658
A110: =IF(OR(A109='Dati input'!$AF$22,A109=""),"",A109+1) -> 106 | B110: 30 | C110: 2029-07-01 | D110: =IF(A110="","",IF(A110<='Dati input'!$AF$23,'Dati input'!$D$36,'Dati input'!$D$37)+I110+H110) ->  | E110: =IF(A110="","",IF(A110<='Dati input'!$AF$23,'Dati input'!$D$36,'Dati input'!$D$30/12*PAM!G109)) ->  | H110: ='Dati input'!$D$32 -> 0 | I110: =IF(A110="","",'Dati input'!$AJ$25) -> 0 | J110: 3225 | K110: 8.835616438
A111: =IF(OR(A110='Dati input'!$AF$22,A110=""),"",A110+1) -> 107 | B111: 30 | C111: 2029-08-01 | D111: =IF(A111="","",IF(A111<='Dati input'!$AF$23,'Dati input'!$D$36,'Dati input'!$D$37)+I111+H111) ->  | E111: =IF(A111="","",IF(A111<='Dati input'!$AF$23,'Dati input'!$D$36,'Dati input'!$D$30/12*PAM!G110)) ->  | H111: ='Dati input'!$D$32 -> 0 | I111: =IF(A111="","",'Dati input'!$AJ$25) -> 0 | J111: 3256 | K111: 8.920547945
A112: =IF(OR(A111='Dati input'!$AF$22,A111=""),"",A111+1) -> 108 | B112: 30 | C112: 2029-09-01 | D112: =IF(A112="","",IF(A112<='Dati input'!$AF$23,'Dati input'!$D$36,'Dati input'!$D$37)+I112+H112) ->  | E112: =IF(A112="","",IF(A112<='Dati input'!$AF$23,'Dati input'!$D$36,'Dati input'!$D$30/12*PAM!G111)) ->  | H112: ='Dati input'!$D$32 -> 0 | I112: =IF(A112="","",'Dati input'!$AJ$25) -> 0 | J112: 3287 | K112: 9.005479452
A113: =IF(OR(A112='Dati input'!$AF$22,A112=""),"",A112+1) -> 109 | B113: 30 | C113: 2029-10-01 | D113: =IF(A113="","",IF(A113<='Dati input'!$AF$23,'Dati input'!$D$36,'Dati input'!$D$37)+I113+H113) ->  | E113: =IF(A113="","",IF(A113<='Dati input'!$AF$23,'Dati input'!$D$36,'Dati input'!$D$30/12*PAM!G112)) ->  | H113: ='Dati input'!$D$32 -> 0 | I113: =IF(A113="","",'Dati input'!$AJ$25) -> 0 | J113: 3317 | K113: 9.087671233
A114: =IF(OR(A113='Dati input'!$AF$22,A113=""),"",A113+1) -> 110 | B114: 30 | C114: 2029-11-01 | D114: =IF(A114="","",IF(A114<='Dati input'!$AF$23,'Dati input'!$D$36,'Dati input'!$D$37)+I114+H114) ->  | E114: =IF(A114="","",IF(A114<='Dati input'!$AF$23,'Dati input'!$D$36,'Dati input'!$D$30/12*PAM!G113)) ->  | H114: ='Dati input'!$D$32 -> 0 | I114: =IF(A114="","",'Dati input'!$AJ$25) -> 0 | J114: 3348 | K114: 9.17260274
A115: =IF(OR(A114='Dati input'!$AF$22,A114=""),"",A114+1) -> 111 | B115: 30 | C115: 2029-12-01 | D115: =IF(A115="","",IF(A115<='Dati input'!$AF$23,'Dati input'!$D$36,'Dati input'!$D$37)+I115+H115) ->  | E115: =IF(A115="","",IF(A115<='Dati input'!$AF$23,'Dati input'!$D$36,'Dati input'!$D$30/12*PAM!G114)) ->  | H115: ='Dati input'!$D$32 -> 0 | I115: =IF(A115="","",'Dati input'!$AJ$25) -> 0 | J115: 3378 | K115: 9.254794521
A116: =IF(OR(A115='Dati input'!$AF$22,A115=""),"",A115+1) -> 112 | B116: 30 | C116: 2030-01-01 | D116: =IF(A116="","",IF(A116<='Dati input'!$AF$23,'Dati input'!$D$36,'Dati input'!$D$37)+I116+H116) ->  | E116: =IF(A116="","",IF(A116<='Dati input'!$AF$23,'Dati input'!$D$36,'Dati input'!$D$30/12*PAM!G115)) ->  | H116: ='Dati input'!$D$32 -> 0 | I116: =IF(A116="","",'Dati input'!$AJ$25) -> 0 | J116: 3409 | K116: 9.339726027
A117: =IF(OR(A116='Dati input'!$AF$22,A116=""),"",A116+1) -> 113 | B117: 30 | C117: 2030-02-01 | D117: =IF(A117="","",IF(A117<='Dati input'!$AF$23,'Dati input'!$D$36,'Dati input'!$D$37)+I117+H117) ->  | E117: =IF(A117="","",IF(A117<='Dati input'!$AF$23,'Dati input'!$D$36,'Dati input'!$D$30/12*PAM!G116)) ->  | H117: ='Dati input'!$D$32 -> 0 | I117: =IF(A117="","",'Dati input'!$AJ$25) -> 0 | J117: 3440 | K117: 9.424657534
A118: =IF(OR(A117='Dati input'!$AF$22,A117=""),"",A117+1) -> 114 | B118: 30 | C118: 2030-03-01 | D118: =IF(A118="","",IF(A118<='Dati input'!$AF$23,'Dati input'!$D$36,'Dati input'!$D$37)+I118+H118) ->  | E118: =IF(A118="","",IF(A118<='Dati input'!$AF$23,'Dati input'!$D$36,'Dati input'!$D$30/12*PAM!G117)) ->  | H118: ='Dati input'!$D$32 -> 0 | I118: =IF(A118="","",'Dati input'!$AJ$25) -> 0 | J118: 3468 | K118: 9.501369863
A119: =IF(OR(A118='Dati input'!$AF$22,A118=""),"",A118+1) -> 115 | B119: 30 | C119: 2030-04-01 | D119: =IF(A119="","",IF(A119<='Dati input'!$AF$23,'Dati input'!$D$36,'Dati input'!$D$37)+I119+H119) ->  | E119: =IF(A119="","",IF(A119<='Dati input'!$AF$23,'Dati input'!$D$36,'Dati input'!$D$30/12*PAM!G118)) ->  | H119: ='Dati input'!$D$32 -> 0 | I119: =IF(A119="","",'Dati input'!$AJ$25) -> 0 | J119: 3499 | K119: 9.58630137
A120: =IF(OR(A119='Dati input'!$AF$22,A119=""),"",A119+1) -> 116 | B120: 30 | C120: 2030-05-01 | D120: =IF(A120="","",IF(A120<='Dati input'!$AF$23,'Dati input'!$D$36,'Dati input'!$D$37)+I120+H120) ->  | E120: =IF(A120="","",IF(A120<='Dati input'!$AF$23,'Dati input'!$D$36,'Dati input'!$D$30/12*PAM!G119)) ->  | H120: ='Dati input'!$D$32 -> 0 | I120: =IF(A120="","",'Dati input'!$AJ$25) -> 0 | J120: 3529 | K120: 9.668493151
A121: =IF(OR(A120='Dati input'!$AF$22,A120=""),"",A120+1) -> 117 | B121: 30 | C121: 2030-06-01 | D121: =IF(A121="","",IF(A121<='Dati input'!$AF$23,'Dati input'!$D$36,'Dati input'!$D$37)+I121+H121) ->  | E121: =IF(A121="","",IF(A121<='Dati input'!$AF$23,'Dati input'!$D$36,'Dati input'!$D$30/12*PAM!G120)) ->  | H121: ='Dati input'!$D$32 -> 0 | I121: =IF(A121="","",'Dati input'!$AJ$25) -> 0 | J121: 3560 | K121: 9.753424658
A122: =IF(OR(A121='Dati input'!$AF$22,A121=""),"",A121+1) -> 118 | B122: 30 | C122: 2030-07-01 | D122: =IF(A122="","",IF(A122<='Dati input'!$AF$23,'Dati input'!$D$36,'Dati input'!$D$37)+I122+H122) ->  | E122: =IF(A122="","",IF(A122<='Dati input'!$AF$23,'Dati input'!$D$36,'Dati input'!$D$30/12*PAM!G121)) ->  | H122: ='Dati input'!$D$32 -> 0 | I122: =IF(A122="","",'Dati input'!$AJ$25) -> 0 | J122: 3590 | K122: 9.835616438
A123: =IF(OR(A122='Dati input'!$AF$22,A122=""),"",A122+1) -> 119 | B123: 30 | C123: 2030-08-01 | D123: =IF(A123="","",IF(A123<='Dati input'!$AF$23,'Dati input'!$D$36,'Dati input'!$D$37)+I123+H123) ->  | E123: =IF(A123="","",IF(A123<='Dati input'!$AF$23,'Dati input'!$D$36,'Dati input'!$D$30/12*PAM!G122)) ->  | H123: ='Dati input'!$D$32 -> 0 | I123: =IF(A123="","",'Dati input'!$AJ$25) -> 0 | J123: 3621 | K123: 9.920547945
A124: =IF(OR(A123='Dati input'!$AF$22,A123=""),"",A123+1) -> 120 | B124: 30 | C124: 2030-09-01 | D124: =IF(A124="","",IF(A124<='Dati input'!$AF$23,'Dati input'!$D$36,'Dati input'!$D$37)+I124+H124) ->  | E124: =IF(A124="","",IF(A124<='Dati input'!$AF$23,'Dati input'!$D$36,'Dati input'!$D$30/12*PAM!G123)) ->  | H124: ='Dati input'!$D$32 -> 0 | I124: =IF(A124="","",'Dati input'!$AJ$25) -> 0 | J124: 3652 | K124: 10.00547945

Sheet Proposta contrattuale (hidden)
C6: Spett.le INTESA SANPAOLO SPA
C7: Luogo | D7: =IF('Dati input'!E9="","",IF('Dati input'!E9<>"",'Dati input'!E9,'Dati input'!E15)) -> 
C8: Data | D8: ='Dati input'!AG30 -> 2020-08-31
C10: Formuliamo, sulla base dello schema contrattuale predisposto dalla Banca e da noi compilato con l’ausilio del simulatore messo a disposizione della Banca, la Proposta Contrattuale sotto riportata. Ai fini della conclusione del contratto, restiamo in attesa di ricevere l’Accettazione della Banca. A tale proposito, prendiamo atto che la tempistica media stimata dalla Banca per l'evasione positiva della richiesta di finanziamento è di 8 giorni dalla ricezione della documentazione completa (dato rilevato al 30.06.2020 e soggetto ad aggiornamento).
C11: PROPOSTA CONTRATTUALE
C12: Oggetto: finanziamento finalizzato a fare fronte all’emergenza COVID-19 con copertura del 100 percento da parte del Fondo centrale di garanzia. Art. 13, comma 1, lettere m) e m-bis) decreto-legge 8 aprile 2020, n. 23, convertito, con modificazioni, dalla legge 5 giugno 2020, n. 40.
C14: Ragione / Denominazione sociale | D14: =IF('Dati input'!D8<>"",'Dati input'!D8,"") -> 
C15: Sede | D15: =IF('Dati input'!E9<>"",CONCATENATE('Dati input'!E9,", ",'Dati input'!S9),"") -> 
C16: Partita iva / Codice fiscale | D16: =IF('Dati input'!D10<>"",'Dati input'!D10,"") -> 
C18: oppure
C20: Cognome e Nome | D20: =IF('Dati input'!D14<>"",'Dati input'!D14,"") -> 
C21: Residente in | D21: =IF('Dati input'!E15<>"",CONCATENATE('Dati input'!E15,", ",'Dati input'!S15),"") -> 
C22: Ditta (eventuale) | D22: =IF('Dati input'!D16<>"",'Dati input'!D16,"") -> 
C23: Partita iva / Codice fiscale | D23: =IF('Dati input'!D17<>"",'Dati input'!D17,"") -> 
C25: (in seguito, Parte Finanziata) e INTESA SANPAOLO S.p.A. (in seguito "Banca")
C26: =CONCATENATE('Dati input'!AL42,'Dati input'!D22,'Dati input'!AL43) -> premesso che: - la Parte Finanziata ha ottenuto dalla Banca un finanziamento di euro finalizzato a fare fronte all’emergenza COVID-19, come previsto dall’art. 13, comma 1, lettera m), decreto legge 8 aprile 2020 n. 23, prima della conversione in legge di detto decreto; - tenuto conto di quanto previsto dalla nuova lettera m-bis) dell’art. 13, comma 1, del citato decreto legge, convertito, con modificazioni, dalla legge 5 giugno 2020, n. 40, la Parte Finanziata richiede un ulteriore finanziamento al fine di adeguare l’importo complessivamente finanziato alle nuove condizioni introdotte dalla legge di conversione; ciò premesso, le parti convengono e stipulano quanto segue.
C27: *************************** DOCUMENTO DI SINTESI ("DDS") N. 1/2020 CONDIZIONI ECONOMICHE
C28: =CONCATENATE("- Durata del finanziamento: ",'Dati input'!AF22," mesi, a decorrere dalla data di erogazione del finanziamento, comprensiva di un periodo di ") -> - Durata del finanziamento: mesi, a decorrere dalla data di erogazione del finanziamento, comprensiva di un periodo di
C29: preammortamento.
C30: =CONCATENATE("- Tasso di interesse: fisso, pari al ",'Dati input'!D30*100,"% nominale annuo.") -> 
C31: - Periodicità rate: mensile posticipata a decorrere dalla data di erogazione del finanziamento, secondo le scadenze che saranno indicate
C32: nel Piano di Ammortamento allegato all’eventuale Accettazione della Banca.
C33: - Pagamento degli interessi: a decorrere dalla data di erogazione.
C34: =CONCATENATE("- Preammortamento: n. ",'Dati input'!AF23," rate iniziali di soli interessi di Euro ",ROUND('Dati input'!D36,2)," ciascuna.") -> 
C35: =CONCATENATE("- Ammortamento: n.",'Dati input'!AF22-'Dati input'!AF23," rate (comprensive di interessi e capitale) di Euro ",ROUND('Dati input'!D37,2)," ciascuna.") -> 
C36: - Interessi di mora: pari al tasso di interesse contrattuale nominale annuo maggiorato di 2 punti percentuali.
C37: =CONCATENATE("- Tasso annuo effettivo globale (TAEG): alla data odierna ",ROUND('Dati input'!AG36*100,3),"% annuo.") -> - Tasso annuo effettivo globale (TAEG): alla data odierna 0% annuo.
C38: - Spese: A) istruttoria: euro 0; B) per eventuali volture: euro 0; rimborso spese per invio di comunicazioni previste per legge : euro 0 per ogni invio; rimborso spese per invio di comunicazioni previste per legge con modalità on line: euro 0 per ogni invio; rimborso spese per incasso e avviso di scadenza rata o quietanza di pagamento: euro 0 per ogni invio; rimborso spese per incasso e avviso di scadenza rata o quietanza di pagamento on line: euro 0 per ogni invio; rilascio certificato di sussistenza credito: euro 0. per riesame pratica richiesta dal mutuatario: 0 % sull'importo del capitale residuo al momento della richiesta, col minimo di euro 0 (con eccezione dei casi esenti da spese ai sensi dell'art. 120 quater TUB). Non sono dovute in ogni caso spese per le comunicazioni esenti ai sensi di legge (attualmente art. 127 bis, comma 1 del TUB e art. 8 bis legge n. 40/2007).
C45: ***************************
C46: Le Parti convengono espressamente che le premesse e il Documento di Sintesi sopra riportato costituiscono parte integrante del presente contratto, che è inoltre regolato dai seguenti
C47: Termini e condizioni
C48: 1. Importo, finalità, garanzia
C49: =CONCATENATE("La Banca concede alla Parte Finanziata un finanziamento di euro ",'Dati input'!D23," (",'Dati input'!AQ23," euro), (di seguito") -> La Banca concede alla Parte Finanziata un finanziamento di euro (ZERO/ euro), (di seguito
C50: “Finanziamento”) finalizzato a fare fronte all’emergenza COVID-19, come previsto dall’art. 13, comma 1, lettera m) decreto legge 8 aprile 2020, n. 23, convertito in legge, con modificazioni, dalla legge 5 giugno 2020, n. 40 (cd. “Decreto Liquidità”). A valere sul presente finanziamento la Parte Fiananziata presenta richiesta di garanzia al Fondo di Garanzia per le Piccole Medie Imprese (legge n. 662/1996), assumendosi ogni conseguente obbligo e responsabilità, come specificato nel successivo art. 7-bis.
C52: 2. Modalità di erogazione e addebito delle rate
C53: L'erogazione sarà effettuata in unica soluzione, a seguito della eventuale conclusione del contratto mediante accettazione da parte della Banca della Proposta Contrattuale presentata dalla Parte Finanziata. Ai fini dell’erogazione del Finanziamento la Parte Finanziata deve essere titolare di un conto corrente presso Intesa Sanpaolo, a meno che non rivesta la qualità di professionista o di microimpresa (quest’ultima identificata secondo quanto previsto dal D. Lgs. 6/9/2005 n. 206, art. 18, lettera d-bis). In quest’ultimo caso la stessa potrà scegliere che l’accredito del provento del finanziamento possa avvenire su un conto corrente presso una banca non facente parte del Gruppo Intesa Sanpaolo. Ciò posto, la Parte Finanziata indica, ai fini dell’erogazione del Finanziamento e dell’addebito delle relative rate, il seguente codice IBAN di un conto a sé intestato:
C54: =CONCATENATE('Dati input'!F25,'Dati input'!G25,'Dati input'!H25,'Dati input'!I25,'Dati input'!J25,'Dati input'!K25,'Dati input'!L25,'Dati input'!M25,'Dati input'!N25,'Dati input'!O25,'Dati input'!P25,'Dati input'!Q25,'Dati input'!R25,'Dati input'!S25,'Dati input'!T25,'Dati input'!U25,'Dati input'!V25,'Dati input'!W25,'Dati input'!X25,'Dati input'!Y25,'Dati input'!Z25,'Dati input'!AA25,'Dati input'!AB25,'Dati input'!AC25,'Dati input'!AD25,'Dati input'!AE25,'Dati input'!AF25) -> 
C55: Qualora al momento dell’erogazione il conto presso Intesa Sanpaolo presenti uno sconfinamento, e cioè un saldo negativo in assenza di fido o in extra-fido (ovvero con utilizzo a debito oltre l'importo dell’affidamento), la Banca procederà con l’emissione di un assegno circolare non trasferibile, di importo pari all’ammontare del Finanziamento, che la Parte Finanziata dovrà ritirare presso la Filiale tenutaria del rapporto. Sul conto sopra indicato verranno comunque addebitate le rate del Finanziamento. Qualora il conto non sia presso Intesa Sanpaolo, la Parte Finanziata per la domiciliazione delle rate dovrà sottoscrivere un’apposita autorizzazione per l’addebito diretto prima dell’erogazione del Finanziamento.
C57: 3. Durata e modalità di rimborso
C58: La durata del Finanziamento è indicata nel Documento di Sintesi (“DDS”) riportato sul frontespizio del presente contratto. La periodicità delle rate, le modalità di pagamento degli interessi e di rimborso del capitale sono definiti nel DDS. La Banca fornirà un piano di ammortamento dettagliato in occasione dell’eventuale accettazione della Proposta Contrattuale.
C60: 4. Tasso di interesse
C61: =CONCATENATE("Il tasso degli interessi per tutta la durata del Finanziamento è pari al tasso nominale annuo del ",ROUND('Dati input'!D30*100,2),"%. Gli interessi di cui al presente articolo saranno calcolati in base ad un mese di 30 giorni con divisore fisso 36.000 su base annua."," Il tasso degli interessi del presente finanziamento è calcolato nel rispetto delle previsioni dell’art. 13, comma 1, lettera m) del Decreto Liquidità.") -> 
C63: 5. Interessi di mora Ogni somma dovuta per qualsiasi titolo in dipendenza del presente contratto e non pagata produrrà, dal giorno della scadenza e senza bisogno di costituzione in mora, interessi moratori a carico della Parte Finanziata ed a favore della Banca. Su detti interessi non è consentita la capitalizzazione periodica. Gli interessi di mora saranno calcolati in base all'effettivo numero dei giorni trascorsi e con divisore fisso 36.500 su base annua. La misura del tasso di mora è definita nel DDS. 6. Rimborso anticipato Il rimborso anticipato del finanziamento è consentito, in tutto o in parte, alle seguenti condizioni: a) che la Parte Finanziata adempia ogni obbligo contrattuale su di essa gravante al momento dell’estinzione anticipata; b) che il rimborso anticipato non avvenga in concomitanza con la scadenza di una rata. In caso di rimborso anticipato solo parziale, il relativo importo sarà imputato a riduzione proporzionale delle rate di successiva scadenza, ferma pertanto la durata originaria del Finanziamento. 7. Obblighi vari della Parte finanziata La Parte finanziata si obbliga, a decorrere dall’accettazione della presente e fino alla definitiva estinzione di tutte le obbligazioni assunte con il presente contratto, a: a) (nel caso in cui la Parte finanziata sia tenuta, per le vigenti disposizioni di legge, alla redazione e presentazione di un proprio Bilancio) inviare alla Banca i bilanci annuali corredati dalle relazioni del Consiglio di Amministrazione (e, ove esistente, del Collegio Sindacale) entro trenta giorni dalla relativa approvazione da parte dell'Assemblea, nonché l'ordine del giorno delle Assemblee ordinarie e di eventuali Assemblee straordinarie non appena convocate, con obbligo di inviare altresì il relativo verbale entro trenta giorni dall'Assemblea; (nel caso in cui la Parte finanziata non sia tenuta, per le vigenti disposizioni di legge, alla redazione e presentazione di un proprio Bilancio) inviare la documentazione relativa alla propria situazione patrimoniale, finanziaria ed economica ovvero la dichiarazione dei redditi per ogni anno successivo alla stipula del presente finanziamento e fino alla sua estinzione;
C70: b) fornire immediatamente alla Banca, in caso di richiesta di quest'ultima, le dichiarazioni, la documentazione ed ogni altra notizia o dato sulle proprie condizioni patrimoniali, economiche e finanziarie in conformità a quanto previsto dalle istruzioni impartite dall'Organo di Vigilanza delle Banche; c) comunicare immediatamente alla Banca ogni cambiamento o evento di carattere tecnico, amministrativo, giuridico o contenzioso, ancorché notorio, che possa modificare sostanzialmente in senso negativo la situazione patrimoniale, economica o finanziaria o possa comunque pregiudicare la capacità operativa; tra tali eventi si citano, in via esemplificativa e non esaustiva: l’instaurarsi di azioni esecutive, il verificarsi di circostanze che possano dar luogo al recesso di uno o più soci, il ricevimento della comunicazione di recesso da parte di uno o più soci, la deliberazione di destinazione di uno o più patrimoni ad uno o più specifici affari a norma dell’art. 2447 bis c.c.; La banca e la Parte Finanziata convengono espressamente che gli obblighi di cui al presente articolo sono considerati essenziali, l’inadempimento o l’adempimento solo parziale di anche uno solo degli stessi costituirà, nei limiti previsti dal successivo art.9, causa di risoluzione del contratto o di recesso da esso.
C72: 7 Bis. Obblighi derivanti dalla garanzia richiesta al Fondo di Garanzia per le PMI In considerazione della natura agevolata dell'intervento del Fondo di Garanzia e delle dichiarazioni rese in sede di richiesta della garanzia, la Parte Finanziata si obbliga a: a) non mutare la finalità dell’operazione finanziaria; b) applicare - ai sensi della legge n. 300/1970, art.36- nei confronti dei lavoratori dipendenti condizioni non inferiori a quelle risultanti dai contratti collettivi di lavoro della categoria e della zona; c) operare nel pieno rispetto delle vigente norme edilizie, urbanistiche e di salvaguardia ambientale; d) consentire ispezioni e controlli da parte degli Enti preposti e fornire i dati e le informazioni richieste dagli stessi; e) in generale, ad ottemperare agli impegni assunti in sede di richiesta dell’intervento del Fondo di Garanzia le cui disposizioni dichiara di ben conoscere. La Parte Finanziata dichiara, assumendosi ogni responsabilità al riguardo, che l'importo complessivo dei finanziamenti richiesti a questa o ad altre banche, ai sensi dell’art. 13, comma 1, lettera m) del Decreto Liquidità, non è superiore agli importi previsti dall’art. 13, comma 1, lettera c) numeri 1) e 2) del Decreto Liquidità, e comunque non supera il limite di 30.000 euro previsto dal citato art. 13, comma 1, lettera m). La Parte Finanziata prende atto che, anche in caso di attività di controllo da parte del Fondo di Garanzia, i dati forniti in sede di richiesta della garanzia e l’effettiva destinazione dell’agevolazione del Fondo dovranno essere puntualmente documentati e che il mancato rispetto di tale obbligo potrà comportare la revoca della concessione dell’agevolazione e il pagamento a carico della Parte Finanziata delle sanzioni previste dalla legge. 8. Indilazionabilità degli obblighi della Parte Finanziata L'obbligo della Parte Finanziata di pagare alle date fissate tutte le somme dovute a titolo di rimborso del capitale, di pagamento degli interessi o ad altro titolo e, più in generale, l'adempimento degli obblighi di cui al presente contratto non potrà essere sospeso o ritardato neanche per il caso di contestazione, pure giudiziale, che fosse sollevata dalla Parte Finanziata, da garanti o da terzi.
C74: 9. Decadenza dal beneficio del termine, risoluzione del contratto e recesso A. Si conviene espressamente che costituirà causa di decadenza della Parte finanziata dal beneficio del termine, senza che occorra pronuncia giudiziale, il verificarsi di una qualsiasi delle ipotesi previste dall'art. 1186 c.c.. Costituirà altresì causa di decadenza della Parte finanziata dal beneficio del termine richiesta di ammissione a procedure concorsuali o a procedure, anche di natura stragiudiziale, aventi effetti analoghi o che comunque comportino il soddisfacimento dei debiti e delle obbligazioni in genere con modalità diverse da quelle normali, ivi inclusa la cessione dei beni ai creditori. B. Si conviene espressamente che abbia luogo la risoluzione del contratto, a norma dell'art. 1456 c.c., sia in caso di inadempimento dell’obbligo di pagare tutto quanto dovuto alla Banca con le modalità e nei termini previsti dagli artt. 3 e 6, sia in caso di inadempimento di anche uno solo degli obblighi di cui all'art. 7, lettere a), b), c), e di cui all'art.7bis, la risoluzione espressa potrà essere dichiarata anche qualora situazioni, dati o conti storici, presentati al fine di ottenere il finanziamento o nel corso del medesimo, risultino poi non corrispondenti al vero. C. Si conviene espressamente la facoltà della Banca di recedere dal contratto di finanziamento, a norma dell'art. 1373 c.c., al verificarsi, oltre che di qualunque causa di scioglimento dell’impresa, di uno qualsiasi dei seguenti eventi riguardanti la Parte Finanziata: a) convocazione di assemblea per deliberare la messa in liquidazione; b) fusione, scissione, cessione o conferimento di azienda oppure di ramo d’azienda non previamente autorizzate per iscritto dalla Banca; c) esistenza di formalità, ancorché comunicate ai sensi dell'art. 7, che, ad insindacabile giudizio della Banca, possano risultare pregiudizievoli per la situazione legale, patrimoniale, economica, finanziaria della Parte Finanziata quali, in via esemplificativa e non esaustiva, emissione di decreti ingiuntivi, provvedimenti di sequestro conservativo sui beni sociali, costituzione di patrimoni destinati ad uno specifico affare a norma dell’art. 2447 bis c.c. ecc.; d) inadempimento di obbligazioni di natura creditizia, finanziaria, nonché di garanzia, assunte nei confronti di qualsiasi soggetto; e) decadenza dal beneficio del termine, risoluzione o recesso per fatto imputabile alla Parte Finanziata rispetto a qualsiasi terzo finanziatore e relativamente a qualsiasi contratto stipulato; La decadenza dal beneficio del termine, la risoluzione del contratto o il recesso della Banca dal contratto stesso verranno comunicate per lettera raccomandata a.r. e avranno effetto nel momento in cui la Parte Finanziata avrà ricevuto la relativa comunicazione, ovvero questa venga restituita al mittente per compiuta giacenza.
C81: Verificandosi una qualunque ipotesi di decadenza dal beneficio del termine, risoluzione, recesso, previste dal presente articolo, la Parte Finanziata dovrà rimborsare tutto quanto dovuto alla Banca in dipendenza del presente contratto ivi compresi gli eventuali interessi di mora nella misura di prevista dal precedente art. 5, entro 10 (dieci) giorni lavorativi bancari dalla ricezione della relativa richiesta della Banca. 10. Spese Per tutta la durata del finanziamento sono a carico della Parte Finanziata le spese definite nel DDS. Per avere la rendicontazione on line è necessario aderire ai servizi a distanza della Banca e utilizzare le relative credenziali di accesso. Per maggiori informazioni sui servizi a distanza consultare i fogli informativi dedicati. La Banca ha la facoltà di variare, in senso sfavorevole alla Parte Finanziata esclusivamente le spese indicate alla lettera B) del DDS; tali variazioni saranno applicate rispettando le prescrizioni di cui all'art. 118 del D. Lgs. n. 385/1993 (TUB) e successive modifiche e integrazioni. In caso di esercizio della suddetta facoltà, è Vostro diritto di recedere dal rapporto oggetto di modifica, senza spese, entro la data prevista per l’applicazione delle modifiche e di ottenere, in sede di liquidazione dello stesso, l'applicazione delle condizioni precedentemente praticate.
C83: 11. Vincolo successorio - accolli Le obbligazioni tutte assunte dalla Parte Finanziata si intendono costituite con vincolo solidale ed indivisibile anche per eventuali successori ed aventi causa a qualsiasi titolo. Stante la specificità della garanzia, le parti convengano che l’accollo del mutuo possa avvenire solamente senza liberazione del debitore originario e previo parere favorevole del Fondo di Garanzia. 12. Prova del credito Gli estratti conto, le registrazioni ed in genere le risultanze contabili della Banca fanno prova del credito per capitale, interessi e quant'altro dovuto in dipendenza del presente contratto . 13. Legge applicabile e foro competente Il presente contratto è soggetto alla legge italiana. Per ogni e qualsiasi controversia, giudizio e procedimento che dovesse sorgere in dipendenza del presente contratto, sarà competente, il Foro stabilito dal Codice di Procedura Civile (artt.18 e sgg.). 14. Reclami e procedure di risoluzione stragiudiziale delle controversie. La Parte finanziata può presentare un reclamo alla Banca con le modalità indicate nel Foglio informativo, disponibile nelle Filiali e sul sito Internet della Banca. Se la Parte finanziata non è soddisfatta della risposta ricevuta o non ha ricevuto risposta entro 30 giorni, prima di ricorrere al giudice può rivolgersi all’Arbitro Bancario Finanziario (ABF); per sapere come rivolgersi all’Arbitro e l’ambito della sua competenza si può consultare il sito www.arbitrobancariofinanziario.it, chiedere presso le Filiali della Banca d’Italia, oppure chiedere alla Banca. Ai fini della risoluzione stragiudiziale delle controversie che possano sorgere dal presente contratto, la Parte Finanziata e la Banca, nel caso di esperimento del procedimento di mediazione nei termini previsti dalla normativa vigente, possono ricorrere: - al Conciliatore BancarioFinanziario – Associazione per la soluzione delle controversie bancarie, finanziarie e societarie – ADR; il Regolamento del Conciliatore BancarioFinanziario può essere consultato sul sito www.conciliatorebancario.it o chiesto alla Banca; - oppure a un altro organismo iscritto nell’apposito registro tenuto dal Ministero della Giustizia e specializzato in materia bancaria e finanziaria.
C85: 15. Imputazione dei pagamenti Salva diversa determinazione della Banca, qualsiasi versamento effettuato dalla Parte Finanziata o dagli eventuali garanti sarà imputato innanzitutto al rimborso di spese ed oneri, al pagamento di accessori ed interessi e, per il rimanente, in conto capitale. 16. Elezione di domicilio La Banca elegge domicilio presso la propria sede legale in Torino, Piazza San Carlo, 156 e quanto alla Parte Finanziata presso la sede o residenza dichiarata nel presente atto e, in difetto, presso la Segreteria del Comune della propria sede ai sensi dell'art. 143 c.p.c.. 17. Trattamento tributario E' a carico della Parte Finanziata qualsivoglia onere per imposte, tasse, diritti e ritenute che dovesse essere applicato in relazione al presente contratto ed ai pagamenti da eseguirsi in base allo stesso, restando altresì inteso che la Banca dovrà ricevere importi, al netto di qualsivoglia onere, pari a quelli previsti. Ogni restrizione o proibizione di legge che impedisse alla Parte Finanziata di accollarsi tali oneri, obbligherà la stessa, ove richiesto per iscritto, a rimborsare l'importo capitale, oltre agli interessi e ad ogni altra somma dovuta in dipendenza dal presente contratto di finanziamento, entro il termine indicato nella relativa comunicazione.
C92: 18. Informativa sulla surrogazione nei contratti di finanziamento Nel caso in cui la Parte finanziata, se persona fisica o micro-impresa (come definita dall’art. 1, comma 1, lettera t del D.Lgs n. 11/2010), per rimborsare il presente finanziamento ottenga un nuovo mutuo da un’altra banca o intermediario finanziario, nei casi previsti dall’art. 120 quater del T.U.B., la Parte finanziata stessa non dovrà sostenere alcun costo (quali, a titolo di esempio: commissioni, spese, oneri o penali), neanche indirettamente. La legge prevede che il nuovo contratto così stipulato mantenga le garanzie reali e personali del precedente. Con la seguente firma il Cliente approva tutti i termini e le condizioni sopra riportati.
C99: Il Cliente approva specificamente le seguenti norme, ai sensi delle vigenti disposizioni (art.1341 codice civile, testo unico bancario e relative disposizioni di attuazione): 5) interessi di mora e loro modalità di calcolo 7) Obblighi vari. 7bis) obblighi derivanti dall'agevolazione 8) Indilazionabilità degli obblighi della Parte Finanziata. 9) Decadenza dal beneficio del termine, risoluzione del contratto, recesso e capitalizzazione degli interessi a seguito della risoluzione per inadempimento. 10) Spese. 11)Accolli 12) Prova del credito.
C106: Il Cliente si impegna a conservare il modulo cartaceo sottoscritto e a consegnarlo alla Banca alla prima occasione utile, successivamente al termine dello stato di emergenza; il Cliente inoltre prende atto che l’eventuale accettazione della Banca sarà fornita su supporto durevole (file in formato PDF) e trasmessa a mezzo di posta elettronica, e che alla prima occasione utile, successivamente al termine dello stato di emergenza, verrà consegnata una copia cartacea della stessa.
